Workbook

Sheet list
A3: مسئول التحميل | B3: اسم الجمارك | C3: اسم الميناء | D3: اسم الشركة | E3: اسم المحطه | F3: اسم المستورد | G3: اسم البلد | H3: اسم الدوله | I3: طريقة الدفع | J3: اسم المركب | K3: شركة كنتينر
A4: MOHAMED WAFI | B4: AIR SEA LAND | C4: ALEX | D4: AHSAN | E4: ELMADAWI | F4: FRUTTORIA | G4: NOVARSISK | H4: RUSSIA | I4: FOB | J4: OYSTER | K4: COSCO
A5: HAYTHM | B5: EASY WAY | C5: BOUR SAID | D5: LAVEN | E5: ELFRNSYA | F5: PALMA | G5: CONSTANTA | H5: ROMANIA | I5: CIS | J5: MSC RHIANNON | K5: MSC
A6: AHMED OSAMA | B6: Ocean Queen | C6: SAFAGA | D6: ASILAY | E6: ELATTAR | F6: YOUNS | G6: ELRYIDA | H6: ELSAUDI | I6: CIF | J6: CONTSHIP RUN | K6: ARKAS
A7: AYMAN | E7: FOUR FROUTS | F7: HAKAN | I7: KOMISYON | J7: KAPTAN | K7: MEHMET KAHECI A
E8: ASKAR | F8: ELEMAMT TRID | I8: EXW | J8: AURELA | K8: WAN HAI
F9: AQUA | J9: ALEXANDER MAERSK | K9: SEA LAND
F10: YOUNS | J10: SUDEROOG
F11: TINDER | J11: VERA A
J12: MAHMET KAHVECI A

Sheet toutal
B1: رقم الكونتينر | C1: الأصناف | D1: المزارع | E1: المحطة | F1: رقم الكونتينر | G1: المصدر | H1: اسم المستورد | I1: اسم الجمارك | J1: PALET ADET | N1: Net Weight
J2: export | L2: operation process
J3: weight | K3: PALET ADET | L3: weight | M3: PALET ADET
B4: hakan1 | C4: =+hakan!B11 -> كيت اخضر_كيت احمر_كيت | D4: =+hakan!B6 -> إسحاق_العطار_العدالة | E4: =+hakan!B8 -> ELFRNSYA | F4: =+hakan!M6 -> mas56536226 | G4: =+hakan!B12 -> AHSAN | H4: =+hakan!B13 -> YOUNS | I4: =+hakan!B17 -> EASY WAY | J4: =+hakan!K47 -> 8282.380952 | K4: =+hakan!L47 -> 10 | L4: =+hakan!M47 -> 9110.619048 | M4: =+hakan!N47 -> 11 | N4: =+hakan!C81 -> 17393
B5: hakan2
B6: hakan3
B7: hakan4
B8: hakan5
B9: hakan6
B10: hakan7
B11: hakan8
B12: hakan9

Sheet hakan
B1: ASILAY For Agriculture Crops
F2: بيان بتحميل الحاوية أو ( البراد)
B3: TIR YUKLEME PLANI
B4: CONSTANTA | E4: GIDECEGI SEHIR | I4: اسم البلد | L4: 15 | M4: 2022-03-15 | P4: TRIH | R4: تاريخ | U4: 1
B5: AHMED OSAMA | E5: YUKLE MEYAPAN KISI | I5: مسئول التحميل | L5: 16 | M5: 2022-03-20 | P5: LIMAN HAREKET | R5: وقت التحرك من الميناء | U5: 2
B6: =H45 &"_" & F45&"_" & D45 -> إسحاق_العطار_العدالة | E6: MUSTAHSIL ISMI | I6: مزرعة البضاعة | L6: 17 | M6: mas56536226 | P6: KONTEYNIR SERI NUMARASI | R6: رقم الكنتينر | U6: 3
E7: MALI ALAN SIMSAR | I7: اسم السمسار | L7: 18 | M7: hakan | P7: KONTEYNIR SIRA NO | R7: عدد التحميل | U7: 4
B8: ELFRNSYA | E8: MALIN ISLENDIGI ISLETME | I8: اسم المحطه | L8: 19 | M8: MEHMET KAHECI A | P8: KONTENIR FIRMASI | R8: شركة كونتينر | U8: 5
B9: 535665 | I9: رقم السيل | L9: 20 | M9: محمد | P9: SOFR ADI | R9: اسم السواق | U9: 6
B10: درجة أولى | E10: CLASS | I10: الصنف المحصول | L10: 21 | M10: 01250000 | P10: SOFOR TEL | R10: التليفون | U10: 7
B11: =T45&"_" & R45&"_" & P45 -> كيت اخضر_كيت احمر_كيت | E11: DEGREE | I11: النوع المحصول | L11: 22 | M11: 538/568 | P11: TIR PLAKA | R11: رقم السياره | U11: 8
B12: AHSAN | I12: اسم المصدر | L12: 23 | N12: 6 | P12: PARTI NO | R12: لوط | U12: 9
B13: YOUNS | I13: اسم المستورد | L13: 24 | M13: 4100$ | P13: TERMOKINK NAVLIUN | R13: نولون براد | U13: 10
B14: ROMANIA | E14: LIMAN ADI | I14: اسم الدوله | L14: 25 | P14: GUMAURK | R14: جمارك | U14: 11
B15: ALEX | I15: اسم الميناء | L15: 26 | P15: KONTENIR VE GEMI NAVLUN | R15: نولون المركب الكنتينر | U15: 12
B16: CIF | E16: Payment method | I16: طريقة الدفع | L16: 27 | M16: 5 | P16: GIDECEGI DERECE | R16: درجة الحراره | U16: 13
B17: EASY WAY | E17: =+P28 -> GUMAURK | I17: اسم الجمارك | L17: 28 | M17: KAPTAN | P17: GEMI ADL | R17: اسم المركب | U17: 14
D19: 1 | F19: 0.9 | H19: 0.8 | K19: 0.7 | L19: * | M19: 0.6 | O19: 0.5 | P19: MALIN KALITE DUZEYI | R19: جودة البضاعه
B21: يرتقالي / ORANGE | E21: برتقالي كاتم /DARK ORANGE | I21: اصفر على برتقالي / YELLOW ON ORANGE | N21: اصفر/ YELLOW | P21: RENK | R21: اللون
F23: CIF | H23: KOMISYON | K23: CIS | L23: * | M23: FOB | O23: EXW | P23: Payment method | R23: طريقة الدفع
L24: * | M24: NO | O24: YES | P24: GENERATOR | R24: مولد
G26: 5 | H26: ANOTHER COUNTRY | M26: EGYPT | P26: FREE TIM | R26: الوقت المتبقى
D28: EASY WAY | H28: Ocean Queen | L28: * | M28: AIR SEA LAND | P28: GUMAURK | R28: جمارك
B29: KALIBRE
B30: TOUTAL | L30: MIX | M30: LARG | N30: 64 | O30: 56 | P30: 48 | Q30: 40 | R30: 36 | S30: 32 | T30: KALIBRE
T31: حجم
B32: =SUM(H32:S32) -> 16 | P32: 1 | Q32: 4 | R32: 6 | S32: 5 | T32: ADET
B33: YUKLEME PLANI
F34: 10 | H34: 9 | J34: 8 | K34: 7 | M34: 6 | O34: 5 | P34: 4 | Q34: 3 | R34: 2 | S34: 1 | T34: نوع البضاعه
F35: ORANG | G35: ORANG | H35: ORANG | I35: ORANG | J35: ORANG | K35: ORANG | M35: ORANG | N35: ORANG | O35: ORANG | P35: ORANG | Q35: ORANG | R35: ORANG | S35: ORANG | T35: MALIN CINSI
A36: 80 | I36: 150 | J36: 120 | K36: 180 | M36: 120 | O36: 150 | P36: 120 | Q36: 180 | R36: 180 | S36: 180 | T36: NAMPER
F37: FRESH | G37: FRESH | H37: FRESH | I37: FRESH | J37: FRESH | K37: FRESH | M37: FRESH | N37: FRESH | O37: FRESH | P37: FRESH | Q37: FRESH | R37: FRESH | S37: FRESH | T37: FREESH/COLORING
B39: TOTAL | F39: 21 | H39: 20 | J39: 19 | K39: 18 | M39: 17 | O39: 16 | P39: 15 | Q39: 14 | R39: 13 | S39: 12 | T39: نوع البضاعه
F40: ORANG | G40: ORANG | H40: ORANG | I40: ORANG | J40: ORANG | K40: ORANG | M40: ORANG | N40: ORANG | O40: ORANG | P40: ORANG | Q40: ORANG | R40: ORANG | S40: ORANG | T40: ORANG
B41: =D41+F41+H41+K41+M41+O41+P41+Q41++R41+S41+B36+D36+F36+H36+K36+M36+O36+P36+Q36+R36+S36 -> 1110 | T41: KASA ADEDI
F42: FRESH | G42: FRESH | H42: FRESH | I42: FRESH | J42: FRESH | K42: FRESH | M42: FRESH | N42: FRESH | O42: FRESH | P42: FRESH | Q42: FRESH | R42: FRESH | S42: FRESH | T42: FREESH/COLORING
B44: Farmes | K44: PALET ADET | P44: items
B45: الاجمالى | D45: العدالة | F45: العطار | H45: إسحاق | K45: export | M45: operation process | P45: كيت | R45: كيت احمر | T45: كيت اخضر
B46: weight | C46: PALET ADET | D46: weight | E46: PALET ADET | F46: weight | G46: PALET ADET | H46: weight | I46: PALET ADET | K46: weight | L46: PALET ADET | M46: weight | N46: PALET ADET | P46: weight | Q46: PALET ADET | R46: weight | S46: PALET ADET | T46: weight | U46: PALET ADET
B47: =+C81 -> 17393 | C47: =+Q69 -> 21 | D47: =($B$47/$C$47)*E47 -> 4969.428571 | E47: 6 | F47: =($B$47/$C$47)*G47 -> 4969.428571 | G47: 6 | H47: =($B$47/$C$47)*I47 -> 7454.142857 | I47: 9 | K47: =($B$47/$C$47)*L47 -> 8282.380952 | L47: 10 | M47: =($B$47/$C$47)*N47 -> 9110.619048 | N47: 11 | P47: =($B$47/$C$47)*Q47 -> 8282.380952 | Q47: 10 | R47: =($B$47/$C$47)*S47 -> 4969.428571 | S47: 6 | T47: =($B$47/$C$47)*U47 -> 4141.190476 | U47: 5
C49: Weight | D49: العدد | F49: الوحدة/الوزن | G49: بيان المهمات | I49: MISSIONS | M49: weight BOXES | O49: weight BOX | P49: KASA ADETI | Q49: PALET ADET | R49: COLORS BOX | S49: AMBALAJ | U49: MALIN CINSI
C50: =F50*D50 -> 340 | D50: 20 | F50: 17 | G50: بالتة خشب صادر | I50: EXPORTED WOOD PALLET | M50: اجمالي الوزن | O50: وزن الصندوق | P50: عدد الصندوق | Q50: عدد البالتات | R50: لون الصندوق | S50: مقاس الصندوق
C51: =F51*D51 -> 17 | D51: 1 | F51: 17 | G51: شريحة خشب 80 × 120 | I51: WOOD SLICE 80*120 | M51: =P51*O51 -> 0 | O51: 0.47 | Q51: 21 | R51: BLUE | S51: 30*50*16 | U51: ORANG
C52: 80 | D52: 20 | F52: 4 | G52: برواز خشب | I52: WOOD FRAME | M52: =P52*O52 -> 0 | O52: 0.67 | R52: BLACK | S52: 30*40*27
D53: 20 | F53: غطاء | G53: غطاء اصلاي اسود | I53: BLACK COVER AHSAN | M53: 0 | O53: 0.605 | R53: BLUE | S53: 30*40*27
F54: غطاء | G54: غطاء الاحسن ازرق | I54: BLUE COVER ASILAY | M54: =P54*O54 -> 0 | O54: 0.685 | R54: BLUE | S54: 40*60*17
F55: زاوية | G55: زوايا الاحسن اسود | I55: BLACK SQUARE AHSAN | M55: 0 | O55: 0.57 | R55: BLUE | S55: 30*50*22
F56: زاوية | G56: زوايا اصلاي ازرق | I56: BLUE SQUARE ASILAY | M56: 0 | O56: 0.61 | R56: BLAK | S56: 30*50*22
F57: كيلو | G57: كلبس | I57: CLIPS | M57: 0 | O57: 0.42 | R57: BLUE | S57: 30*40*18
F58: كيلو | G58: شمبر | I58: CHAMBER | M58: 0 | O58: 0.45 | R58: BLAK | S58: 30*40*18
F59: بالالف | G59: استيكر حراري | I59: THERMAL STICKER | M59: 0 | O59: 0.45 | R59: BLUE | S59: 30*40*16
F60: بكره | G60: استيكر بيضحك | I60: SMAIL STICKER | M60: 0 | O60: 0.45 | R60: BLAK | S60: 30*40*16
F61: جهاز | G61: جهاز حرارة | I61: HEAT DEVICE | M61: 0 | O61: 0.67 | R61: BLACK | S61: 30*40*27
F62: كيس | G62: اير باج كيس هوائي | I62: AIR BAG | M62: 0 | O62: 0.605 | R62: BLUE | S62: 30*40*27
F63: عدد | G63: بيان بالت | I63: BALT REPORT | M63: 0 | S63: SHIKARA
F64: كيلو | G64: مناديل الاحسن | I64: TISSUE PAPER AHSAN | M64: 0 | O64: 0.85 | S64: KARTOUN OPEN TOP
F65: ص | G65: صندوق 30*40*27 ازرق | H65: صندوق 30*50*22 اسود | I65: BOX 30*40*27 BLUE | M65: 0 | O65: 0.85 | S65: KARTOUN TELSKOBEK
F66: ص | G66: صندوق 30*50*16 ازرق | I66: BOX 30*50*16 BLUE
F67: كيلو | G67: ورق جزاري30*50 | H67: صندوق 30*50*22 اسود
F68: كيلو | G68: ورق جزاري 30*40 | M68: 0
C69: =SUM(B50:C68) -> 437 | G69: TOTAL | M69: =SUM(M51:N68) -> 0 | P69: =SUM(P51:P68) -> 0 | Q69: =SUM(Q51:Q68) -> 21
B70: YUKLEME PLANI DOKUMU
C71: FIYAT | D71: NET KILO | F71: DARA | H71: GAFAF KILO | I71: BRUT KILO | M71: TOTAL | N71: BOKS | P71: PALET ADET | Q71: Box type and size | S71: Item
C72: Price | D72: Net Weight | F72: Tare weight | H72: GAFAF weight | I72: Gross Weight | M72: =P72*N72 -> 1680 | N72: 80 | P72: 21 | Q72: BOX 30*40*27BLUE | S72: ORANG
D73: =I73+H73-F73 -> 17393 | F73: =C69+M69 -> 437 | H73: 250 | I73: 17580 | M73: =P73*N73 -> 0 | Q73: BOX 30*40*27BLUE
M74: 0 | Q74: BOX 30*40*27BLACK
C75: Net Weight | D75: Gross Weight | F75: Net | G75: Gross | I75: Number of boxes | M75: 0 | Q75: BOX 30*50*16 BLUE
C76: =F76*I76 -> 17393 | E76: =G76*I76 -> 17580 | F76: =D73/I76 -> 10.35297619 | G76: =I73/I76 -> 10.46428571 | I76: 1680 | M76: 0 | Q76: BOX 30*50*16 BLUE
C77: =I77*G77 -> 0 | D77: =I77*F77 -> 0 | M77: 0 | Q77: BOX 30*50*22 BLACK | S77: ORANG
C78: =I78*G78 -> 0 | D78: 0 | M78: 0 | Q78: BOX 30*50*22 BLUE
C79: =I79*G79 -> 0 | D79: 0 | M79: 0 | Q79: BOX 30*50*22 BLUE
C80: =I80*G80 -> 0 | D80: =I80*F80 -> 0 | M80: 0 | Q80: BOX 30*50*22 BLUE
C81: =SUM(C76:C80) -> 17393 | D81: =SUM(D76:E80) -> 17580 | F81: =+F76+F77+F78+F79+F80 -> 10.35297619 | G81: =+G80+G79+G78+G77+G76 -> 10.46428571 | I81: =SUM(I76:K80) -> 1680 | M81: =SUM(M71:M80) -> 1680 | P81: =SUM(P72:P80) -> 21 | Q81: TOTAL
K82: =B41-I81 -> -570 | M82: =P69-M81 -> -1680 | P82: =Q69-P81 -> 0

Sheet hakan2
B1: ASILAY For Agriculture Crops
F2: بيان بتحميل الحاوية أو ( البراد)
B3: TIR YUKLEME PLANI
B4: CONSTANTA | E4: GIDECEGI SEHIR | I4: اسم البلد | L4: 15 | M4: 2022-03-15 | P4: TRIH | R4: تاريخ | U4: 1
B5: AHMED OSAMA | E5: YUKLE MEYAPAN KISI | I5: مسئول التحميل | L5: 16 | M5: 2022-03-20 | P5: LIMAN HAREKET | R5: وقت التحرك من الميناء | U5: 2
B6: =H45 &"_" & F45&"_" & D45 -> إسحاق_العطار_العدالة | E6: MUSTAHSIL ISMI | I6: مزرعة البضاعة | L6: 17 | M6: mas56536226 | P6: KONTEYNIR SERI NUMARASI | R6: رقم الكنتينر | U6: 3
E7: MALI ALAN SIMSAR | I7: اسم السمسار | L7: 18 | M7: hakan2 | P7: KONTEYNIR SIRA NO | R7: عدد التحميل | U7: 4
B8: ELFRNSYA | E8: MALIN ISLENDIGI ISLETME | I8: اسم المحطه | L8: 19 | M8: MEHMET KAHECI A | P8: KONTENIR FIRMASI | R8: شركة كونتينر | U8: 5
B9: 535665 | I9: رقم السيل | L9: 20 | M9: محمد | P9: SOFR ADI | R9: اسم السواق | U9: 6
B10: درجة أولى | E10: CLASS | I10: الصنف المحصول | L10: 21 | M10: 01250000 | P10: SOFOR TEL | R10: التليفون | U10: 7
B11: =T45&"_" & R45&"_" & P45 -> كيت اخضر_كيت احمر_كيت | E11: DEGREE | I11: النوع المحصول | L11: 22 | M11: 538/568 | P11: TIR PLAKA | R11: رقم السياره | U11: 8
B12: AHSAN | I12: اسم المصدر | L12: 23 | N12: 6 | P12: PARTI NO | R12: لوط | U12: 9
B13: YOUNS | I13: اسم المستورد | L13: 24 | M13: 4100$ | P13: TERMOKINK NAVLIUN | R13: نولون براد | U13: 10
B14: ROMANIA | E14: LIMAN ADI | I14: اسم الدوله | L14: 25 | P14: GUMAURK | R14: جمارك | U14: 11
B15: ALEX | I15: اسم الميناء | L15: 26 | P15: KONTENIR VE GEMI NAVLUN | R15: نولون المركب الكنتينر | U15: 12
B16: CIF | E16: Payment method | I16: طريقة الدفع | L16: 27 | M16: 5 | P16: GIDECEGI DERECE | R16: درجة الحراره | U16: 13
B17: EASY WAY | E17: =+P28 -> GUMAURK | I17: اسم الجمارك | L17: 28 | M17: KAPTAN | P17: GEMI ADL | R17: اسم المركب | U17: 14
D19: 1 | F19: 0.9 | H19: 0.8 | K19: 0.7 | L19: * | M19: 0.6 | O19: 0.5 | P19: MALIN KALITE DUZEYI | R19: جودة البضاعه
B21: يرتقالي / ORANGE | E21: برتقالي كاتم /DARK ORANGE | I21: اصفر على برتقالي / YELLOW ON ORANGE | N21: اصفر/ YELLOW | P21: RENK | R21: اللون
F23: CIF | H23: KOMISYON | K23: CIS | L23: * | M23: FOB | O23: EXW | P23: Payment method | R23: طريقة الدفع
L24: * | M24: NO | O24: YES | P24: GENERATOR | R24: مولد
G26: 5 | H26: ANOTHER COUNTRY | M26: EGYPT | P26: FREE TIM | R26: الوقت المتبقى
D28: EASY WAY | H28: Ocean Queen | L28: * | M28: AIR SEA LAND | P28: GUMAURK | R28: جمارك
B29: KALIBRE
B30: TOUTAL | L30: MIX | M30: LARG | N30: 64 | O30: 56 | P30: 48 | Q30: 40 | R30: 36 | S30: 32 | T30: KALIBRE
T31: حجم
B32: =SUM(H32:S32) -> 16 | P32: 1 | Q32: 4 | R32: 6 | S32: 5 | T32: ADET
B33: YUKLEME PLANI
F34: 10 | H34: 9 | J34: 8 | K34: 7 | M34: 6 | O34: 5 | P34: 4 | Q34: 3 | R34: 2 | S34: 1 | T34: نوع البضاعه
F35: ORANG | G35: ORANG | H35: ORANG | I35: ORANG | J35: ORANG | K35: ORANG | M35: ORANG | N35: ORANG | O35: ORANG | P35: ORANG | Q35: ORANG | R35: ORANG | S35: ORANG | T35: MALIN CINSI
A36: 80 | I36: 150 | J36: 120 | K36: 180 | M36: 120 | O36: 150 | P36: 120 | Q36: 180 | R36: 180 | S36: 180 | T36: NAMPER
F37: FRESH | G37: FRESH | H37: FRESH | I37: FRESH | J37: FRESH | K37: FRESH | M37: FRESH | N37: FRESH | O37: FRESH | P37: FRESH | Q37: FRESH | R37: FRESH | S37: FRESH | T37: FREESH/COLORING
B39: TOTAL | F39: 21 | H39: 20 | J39: 19 | K39: 18 | M39: 17 | O39: 16 | P39: 15 | Q39: 14 | R39: 13 | S39: 12 | T39: نوع البضاعه
F40: ORANG | G40: ORANG | H40: ORANG | I40: ORANG | J40: ORANG | K40: ORANG | M40: ORANG | N40: ORANG | O40: ORANG | P40: ORANG | Q40: ORANG | R40: ORANG | S40: ORANG | T40: ORANG
B41: =D41+F41+H41+K41+M41+O41+P41+Q41++R41+S41+B36+D36+F36+H36+K36+M36+O36+P36+Q36+R36+S36 -> 1110 | T41: KASA ADEDI
F42: FRESH | G42: FRESH | H42: FRESH | I42: FRESH | J42: FRESH | K42: FRESH | M42: FRESH | N42: FRESH | O42: FRESH | P42: FRESH | Q42: FRESH | R42: FRESH | S42: FRESH | T42: FREESH/COLORING
B44: Farmes | K44: PALET ADET | P44: items
B45: الاجمالى | D45: العدالة | F45: العطار | H45: إسحاق | K45: export | M45: operation process | P45: كيت | R45: كيت احمر | T45: كيت اخضر
B46: weight | C46: PALET ADET | D46: weight | E46: PALET ADET | F46: weight | G46: PALET ADET | H46: weight | I46: PALET ADET | K46: weight | L46: PALET ADET | M46: weight | N46: PALET ADET | P46: weight | Q46: PALET ADET | R46: weight | S46: PALET ADET | T46: weight | U46: PALET ADET
B47: =+C81 -> 17393 | C47: =+Q69 -> 21 | D47: =($B$47/$C$47)*E47 -> 4969.428571 | E47: 6 | F47: =($B$47/$C$47)*G47 -> 4969.428571 | G47: 6 | H47: =($B$47/$C$47)*I47 -> 7454.142857 | I47: 9 | K47: =($B$47/$C$47)*L47 -> 8282.380952 | L47: 10 | M47: =($B$47/$C$47)*N47 -> 9110.619048 | N47: 11 | P47: =($B$47/$C$47)*Q47 -> 8282.380952 | Q47: 10 | R47: =($B$47/$C$47)*S47 -> 4969.428571 | S47: 6 | T47: =($B$47/$C$47)*U47 -> 4141.190476 | U47: 5
C49: Weight | D49: العدد | F49: الوحدة/الوزن | G49: بيان المهمات | I49: MISSIONS | M49: weight BOXES | O49: weight BOX | P49: KASA ADETI | Q49: PALET ADET | R49: COLORS BOX | S49: AMBALAJ | U49: MALIN CINSI
C50: =F50*D50 -> 340 | D50: 20 | F50: 17 | G50: بالتة خشب صادر | I50: EXPORTED WOOD PALLET | M50: اجمالي الوزن | O50: وزن الصندوق | P50: عدد الصندوق | Q50: عدد البالتات | R50: لون الصندوق | S50: مقاس الصندوق
C51: =F51*D51 -> 17 | D51: 1 | F51: 17 | G51: شريحة خشب 80 × 120 | I51: WOOD SLICE 80*120 | M51: =P51*O51 -> 0 | O51: 0.47 | Q51: 21 | R51: BLUE | S51: 30*50*16 | U51: ORANG
C52: 80 | D52: 20 | F52: 4 | G52: برواز خشب | I52: WOOD FRAME | M52: =P52*O52 -> 0 | O52: 0.67 | R52: BLACK | S52: 30*40*27
D53: 20 | F53: غطاء | G53: غطاء اصلاي اسود | I53: BLACK COVER AHSAN | M53: 0 | O53: 0.605 | R53: BLUE | S53: 30*40*27
F54: غطاء | G54: غطاء الاحسن ازرق | I54: BLUE COVER ASILAY | M54: =P54*O54 -> 0 | O54: 0.685 | R54: BLUE | S54: 40*60*17
F55: زاوية | G55: زوايا الاحسن اسود | I55: BLACK SQUARE AHSAN | M55: 0 | O55: 0.57 | R55: BLUE | S55: 30*50*22
F56: زاوية | G56: زوايا اصلاي ازرق | I56: BLUE SQUARE ASILAY | M56: 0 | O56: 0.61 | R56: BLAK | S56: 30*50*22
F57: كيلو | G57: كلبس | I57: CLIPS | M57: 0 | O57: 0.42 | R57: BLUE | S57: 30*40*18
F58: كيلو | G58: شمبر | I58: CHAMBER | M58: 0 | O58: 0.45 | R58: BLAK | S58: 30*40*18
F59: بالالف | G59: استيكر حراري | I59: THERMAL STICKER | M59: 0 | O59: 0.45 | R59: BLUE | S59: 30*40*16
F60: بكره | G60: استيكر بيضحك | I60: SMAIL STICKER | M60: 0 | O60: 0.45 | R60: BLAK | S60: 30*40*16
F61: جهاز | G61: جهاز حرارة | I61: HEAT DEVICE | M61: 0 | O61: 0.67 | R61: BLACK | S61: 30*40*27
F62: كيس | G62: اير باج كيس هوائي | I62: AIR BAG | M62: 0 | O62: 0.605 | R62: BLUE | S62: 30*40*27
F63: عدد | G63: بيان بالت | I63: BALT REPORT | M63: 0 | S63: SHIKARA
F64: كيلو | G64: مناديل الاحسن | I64: TISSUE PAPER AHSAN | M64: 0 | O64: 0.85 | S64: KARTOUN OPEN TOP
F65: ص | G65: صندوق 30*40*27 ازرق | H65: صندوق 30*50*22 اسود | I65: BOX 30*40*27 BLUE | M65: 0 | O65: 0.85 | S65: KARTOUN TELSKOBEK
F66: ص | G66: صندوق 30*50*16 ازرق | I66: BOX 30*50*16 BLUE
F67: كيلو | G67: ورق جزاري30*50 | H67: صندوق 30*50*22 اسود
F68: كيلو | G68: ورق جزاري 30*40 | M68: 0
C69: =SUM(B50:C68) -> 437 | G69: TOTAL | M69: =SUM(M51:N68) -> 0 | P69: =SUM(P51:P68) -> 0 | Q69: =SUM(Q51:Q68) -> 21
B70: YUKLEME PLANI DOKUMU
C71: FIYAT | D71: NET KILO | F71: DARA | H71: GAFAF KILO | I71: BRUT KILO | M71: TOTAL | N71: BOKS | P71: PALET ADET | Q71: Box type and size | S71: Item
C72: Price | D72: Net Weight | F72: Tare weight | H72: GAFAF weight | I72: Gross Weight | M72: =P72*N72 -> 1680 | N72: 80 | P72: 21 | Q72: BOX 30*40*27BLUE | S72: ORANG
D73: =I73+H73-F73 -> 17393 | F73: =C69+M69 -> 437 | H73: 250 | I73: 17580 | M73: =P73*N73 -> 0 | Q73: BOX 30*40*27BLUE
M74: 0 | Q74: BOX 30*40*27BLACK
C75: Net Weight | D75: Gross Weight | F75: Net | G75: Gross | I75: Number of boxes | M75: 0 | Q75: BOX 30*50*16 BLUE
C76: =F76*I76 -> 17393 | E76: =G76*I76 -> 17580 | F76: =D73/I76 -> 10.35297619 | G76: =I73/I76 -> 10.46428571 | I76: 1680 | M76: 0 | Q76: BOX 30*50*16 BLUE
C77: =I77*G77 -> 0 | D77: =I77*F77 -> 0 | M77: 0 | Q77: BOX 30*50*22 BLACK | S77: ORANG
C78: =I78*G78 -> 0 | D78: 0 | M78: 0 | Q78: BOX 30*50*22 BLUE
C79: =I79*G79 -> 0 | D79: 0 | M79: 0 | Q79: BOX 30*50*22 BLUE
C80: =I80*G80 -> 0 | D80: =I80*F80 -> 0 | M80: 0 | Q80: BOX 30*50*22 BLUE
C81: =SUM(C76:C80) -> 17393 | D81: =SUM(D76:E80) -> 17580 | F81: =+F76+F77+F78+F79+F80 -> 10.35297619 | G81: =+G80+G79+G78+G77+G76 -> 10.46428571 | I81: =SUM(I76:K80) -> 1680 | M81: =SUM(M71:M80) -> 1680 | P81: =SUM(P72:P80) -> 21 | Q81: TOTAL
K82: =B41-I81 -> -570 | M82: =P69-M81 -> -1680 | P82: =Q69-P81 -> 0

Sheet hakan3
B1: ASILAY For Agriculture Crops
F2: بيان بتحميل الحاوية أو ( البراد)
B3: TIR YUKLEME PLANI
B4: CONSTANTA | E4: GIDECEGI SEHIR | I4: اسم البلد | L4: 15 | M4: 2022-03-15 | P4: TRIH | R4: تاريخ | U4: 1
B5: AHMED OSAMA | E5: YUKLE MEYAPAN KISI | I5: مسئول التحميل | L5: 16 | M5: 2022-03-20 | P5: LIMAN HAREKET | R5: وقت التحرك من الميناء | U5: 2
B6: =H45 &"_" & F45&"_" & D45 -> إسحاق_العطار_العدالة | E6: MUSTAHSIL ISMI | I6: مزرعة البضاعة | L6: 17 | M6: mas56536226 | P6: KONTEYNIR SERI NUMARASI | R6: رقم الكنتينر | U6: 3
E7: MALI ALAN SIMSAR | I7: اسم السمسار | L7: 18 | M7: hakan3 | P7: KONTEYNIR SIRA NO | R7: عدد التحميل | U7: 4
B8: ELFRNSYA | E8: MALIN ISLENDIGI ISLETME | I8: اسم المحطه | L8: 19 | M8: MEHMET KAHECI A | P8: KONTENIR FIRMASI | R8: شركة كونتينر | U8: 5
B9: 535665 | I9: رقم السيل | L9: 20 | M9: محمد | P9: SOFR ADI | R9: اسم السواق | U9: 6
B10: درجة أولى | E10: CLASS | I10: الصنف المحصول | L10: 21 | M10: 01250000 | P10: SOFOR TEL | R10: التليفون | U10: 7
B11: =T45&"_" & R45&"_" & P45 -> كيت اخضر_كيت احمر_كيت | E11: DEGREE | I11: النوع المحصول | L11: 22 | M11: 538/568 | P11: TIR PLAKA | R11: رقم السياره | U11: 8
B12: AHSAN | I12: اسم المصدر | L12: 23 | N12: 6 | P12: PARTI NO | R12: لوط | U12: 9
B13: YOUNS | I13: اسم المستورد | L13: 24 | M13: 4100$ | P13: TERMOKINK NAVLIUN | R13: نولون براد | U13: 10
B14: ROMANIA | E14: LIMAN ADI | I14: اسم الدوله | L14: 25 | P14: GUMAURK | R14: جمارك | U14: 11
B15: ALEX | I15: اسم الميناء | L15: 26 | P15: KONTENIR VE GEMI NAVLUN | R15: نولون المركب الكنتينر | U15: 12
B16: CIF | E16: Payment method | I16: طريقة الدفع | L16: 27 | M16: 5 | P16: GIDECEGI DERECE | R16: درجة الحراره | U16: 13
B17: EASY WAY | E17: =+P28 -> GUMAURK | I17: اسم الجمارك | L17: 28 | M17: KAPTAN | P17: GEMI ADL | R17: اسم المركب | U17: 14
D19: 1 | F19: 0.9 | H19: 0.8 | K19: 0.7 | L19: * | M19: 0.6 | O19: 0.5 | P19: MALIN KALITE DUZEYI | R19: جودة البضاعه
B21: يرتقالي / ORANGE | E21: برتقالي كاتم /DARK ORANGE | I21: اصفر على برتقالي / YELLOW ON ORANGE | N21: اصفر/ YELLOW | P21: RENK | R21: اللون
F23: CIF | H23: KOMISYON | K23: CIS | L23: * | M23: FOB | O23: EXW | P23: Payment method | R23: طريقة الدفع
L24: * | M24: NO | O24: YES | P24: GENERATOR | R24: مولد
G26: 5 | H26: ANOTHER COUNTRY | M26: EGYPT | P26: FREE TIM | R26: الوقت المتبقى
D28: EASY WAY | H28: Ocean Queen | L28: * | M28: AIR SEA LAND | P28: GUMAURK | R28: جمارك
B29: KALIBRE
B30: TOUTAL | L30: MIX | M30: LARG | N30: 64 | O30: 56 | P30: 48 | Q30: 40 | R30: 36 | S30: 32 | T30: KALIBRE
T31: حجم
B32: =SUM(H32:S32) -> 16 | P32: 1 | Q32: 4 | R32: 6 | S32: 5 | T32: ADET
B33: YUKLEME PLANI
F34: 10 | H34: 9 | J34: 8 | K34: 7 | M34: 6 | O34: 5 | P34: 4 | Q34: 3 | R34: 2 | S34: 1 | T34: نوع البضاعه
F35: ORANG | G35: ORANG | H35: ORANG | I35: ORANG | J35: ORANG | K35: ORANG | M35: ORANG | N35: ORANG | O35: ORANG | P35: ORANG | Q35: ORANG | R35: ORANG | S35: ORANG | T35: MALIN CINSI
A36: 80 | I36: 150 | J36: 120 | K36: 180 | M36: 120 | O36: 150 | P36: 120 | Q36: 180 | R36: 180 | S36: 180 | T36: NAMPER
F37: FRESH | G37: FRESH | H37: FRESH | I37: FRESH | J37: FRESH | K37: FRESH | M37: FRESH | N37: FRESH | O37: FRESH | P37: FRESH | Q37: FRESH | R37: FRESH | S37: FRESH | T37: FREESH/COLORING
B39: TOTAL | F39: 21 | H39: 20 | J39: 19 | K39: 18 | M39: 17 | O39: 16 | P39: 15 | Q39: 14 | R39: 13 | S39: 12 | T39: نوع البضاعه
F40: ORANG | G40: ORANG | H40: ORANG | I40: ORANG | J40: ORANG | K40: ORANG | M40: ORANG | N40: ORANG | O40: ORANG | P40: ORANG | Q40: ORANG | R40: ORANG | S40: ORANG | T40: ORANG
B41: =D41+F41+H41+K41+M41+O41+P41+Q41++R41+S41+B36+D36+F36+H36+K36+M36+O36+P36+Q36+R36+S36 -> 1110 | T41: KASA ADEDI
F42: FRESH | G42: FRESH | H42: FRESH | I42: FRESH | J42: FRESH | K42: FRESH | M42: FRESH | N42: FRESH | O42: FRESH | P42: FRESH | Q42: FRESH | R42: FRESH | S42: FRESH | T42: FREESH/COLORING
B44: Farmes | K44: PALET ADET | P44: items
B45: الاجمالى | D45: العدالة | F45: العطار | H45: إسحاق | K45: export | M45: operation process | P45: كيت | R45: كيت احمر | T45: كيت اخضر
B46: weight | C46: PALET ADET | D46: weight | E46: PALET ADET | F46: weight | G46: PALET ADET | H46: weight | I46: PALET ADET | K46: weight | L46: PALET ADET | M46: weight | N46: PALET ADET | P46: weight | Q46: PALET ADET | R46: weight | S46: PALET ADET | T46: weight | U46: PALET ADET
B47: =+C81 -> 17393 | C47: =+Q69 -> 21 | D47: =($B$47/$C$47)*E47 -> 4969.428571 | E47: 6 | F47: =($B$47/$C$47)*G47 -> 4969.428571 | G47: 6 | H47: =($B$47/$C$47)*I47 -> 7454.142857 | I47: 9 | K47: =($B$47/$C$47)*L47 -> 8282.380952 | L47: 10 | M47: =($B$47/$C$47)*N47 -> 9110.619048 | N47: 11 | P47: =($B$47/$C$47)*Q47 -> 8282.380952 | Q47: 10 | R47: =($B$47/$C$47)*S47 -> 4969.428571 | S47: 6 | T47: =($B$47/$C$47)*U47 -> 4141.190476 | U47: 5
C49: Weight | D49: العدد | F49: الوحدة/الوزن | G49: بيان المهمات | I49: MISSIONS | M49: weight BOXES | O49: weight BOX | P49: KASA ADETI | Q49: PALET ADET | R49: COLORS BOX | S49: AMBALAJ | U49: MALIN CINSI
C50: =F50*D50 -> 340 | D50: 20 | F50: 17 | G50: بالتة خشب صادر | I50: EXPORTED WOOD PALLET | M50: اجمالي الوزن | O50: وزن الصندوق | P50: عدد الصندوق | Q50: عدد البالتات | R50: لون الصندوق | S50: مقاس الصندوق
C51: =F51*D51 -> 17 | D51: 1 | F51: 17 | G51: شريحة خشب 80 × 120 | I51: WOOD SLICE 80*120 | M51: =P51*O51 -> 0 | O51: 0.47 | Q51: 21 | R51: BLUE | S51: 30*50*16 | U51: ORANG
C52: 80 | D52: 20 | F52: 4 | G52: برواز خشب | I52: WOOD FRAME | M52: =P52*O52 -> 0 | O52: 0.67 | R52: BLACK | S52: 30*40*27
D53: 20 | F53: غطاء | G53: غطاء اصلاي اسود | I53: BLACK COVER AHSAN | M53: 0 | O53: 0.605 | R53: BLUE | S53: 30*40*27
F54: غطاء | G54: غطاء الاحسن ازرق | I54: BLUE COVER ASILAY | M54: =P54*O54 -> 0 | O54: 0.685 | R54: BLUE | S54: 40*60*17
F55: زاوية | G55: زوايا الاحسن اسود | I55: BLACK SQUARE AHSAN | M55: 0 | O55: 0.57 | R55: BLUE | S55: 30*50*22
F56: زاوية | G56: زوايا اصلاي ازرق | I56: BLUE SQUARE ASILAY | M56: 0 | O56: 0.61 | R56: BLAK | S56: 30*50*22
F57: كيلو | G57: كلبس | I57: CLIPS | M57: 0 | O57: 0.42 | R57: BLUE | S57: 30*40*18
F58: كيلو | G58: شمبر | I58: CHAMBER | M58: 0 | O58: 0.45 | R58: BLAK | S58: 30*40*18
F59: بالالف | G59: استيكر حراري | I59: THERMAL STICKER | M59: 0 | O59: 0.45 | R59: BLUE | S59: 30*40*16
F60: بكره | G60: استيكر بيضحك | I60: SMAIL STICKER | M60: 0 | O60: 0.45 | R60: BLAK | S60: 30*40*16
F61: جهاز | G61: جهاز حرارة | I61: HEAT DEVICE | M61: 0 | O61: 0.67 | R61: BLACK | S61: 30*40*27
F62: كيس | G62: اير باج كيس هوائي | I62: AIR BAG | M62: 0 | O62: 0.605 | R62: BLUE | S62: 30*40*27
F63: عدد | G63: بيان بالت | I63: BALT REPORT | M63: 0 | S63: SHIKARA
F64: كيلو | G64: مناديل الاحسن | I64: TISSUE PAPER AHSAN | M64: 0 | O64: 0.85 | S64: KARTOUN OPEN TOP
F65: ص | G65: صندوق 30*40*27 ازرق | H65: صندوق 30*50*22 اسود | I65: BOX 30*40*27 BLUE | M65: 0 | O65: 0.85 | S65: KARTOUN TELSKOBEK
F66: ص | G66: صندوق 30*50*16 ازرق | I66: BOX 30*50*16 BLUE
F67: كيلو | G67: ورق جزاري30*50 | H67: صندوق 30*50*22 اسود
F68: كيلو | G68: ورق جزاري 30*40 | M68: 0
C69: =SUM(B50:C68) -> 437 | G69: TOTAL | M69: =SUM(M51:N68) -> 0 | P69: =SUM(P51:P68) -> 0 | Q69: =SUM(Q51:Q68) -> 21
B70: YUKLEME PLANI DOKUMU
C71: FIYAT | D71: NET KILO | F71: DARA | H71: GAFAF KILO | I71: BRUT KILO | M71: TOTAL | N71: BOKS | P71: PALET ADET | Q71: Box type and size | S71: Item
C72: Price | D72: Net Weight | F72: Tare weight | H72: GAFAF weight | I72: Gross Weight | M72: =P72*N72 -> 1680 | N72: 80 | P72: 21 | Q72: BOX 30*40*27BLUE | S72: ORANG
D73: =I73+H73-F73 -> 17393 | F73: =C69+M69 -> 437 | H73: 250 | I73: 17580 | M73: =P73*N73 -> 0 | Q73: BOX 30*40*27BLUE
M74: 0 | Q74: BOX 30*40*27BLACK
C75: Net Weight | D75: Gross Weight | F75: Net | G75: Gross | I75: Number of boxes | M75: 0 | Q75: BOX 30*50*16 BLUE
C76: =F76*I76 -> 17393 | E76: =G76*I76 -> 17580 | F76: =D73/I76 -> 10.35297619 | G76: =I73/I76 -> 10.46428571 | I76: 1680 | M76: 0 | Q76: BOX 30*50*16 BLUE
C77: =I77*G77 -> 0 | D77: =I77*F77 -> 0 | M77: 0 | Q77: BOX 30*50*22 BLACK | S77: ORANG
C78: =I78*G78 -> 0 | D78: 0 | M78: 0 | Q78: BOX 30*50*22 BLUE
C79: =I79*G79 -> 0 | D79: 0 | M79: 0 | Q79: BOX 30*50*22 BLUE
C80: =I80*G80 -> 0 | D80: =I80*F80 -> 0 | M80: 0 | Q80: BOX 30*50*22 BLUE
C81: =SUM(C76:C80) -> 17393 | D81: =SUM(D76:E80) -> 17580 | F81: =+F76+F77+F78+F79+F80 -> 10.35297619 | G81: =+G80+G79+G78+G77+G76 -> 10.46428571 | I81: =SUM(I76:K80) -> 1680 | M81: =SUM(M71:M80) -> 1680 | P81: =SUM(P72:P80) -> 21 | Q81: TOTAL
K82: =B41-I81 -> -570 | M82: =P69-M81 -> -1680 | P82: =Q69-P81 -> 0

Sheet hakan4
B1: ASILAY For Agriculture Crops
F2: بيان بتحميل الحاوية أو ( البراد)
B3: TIR YUKLEME PLANI
B4: CONSTANTA | E4: GIDECEGI SEHIR | I4: اسم البلد | L4: 15 | M4: 2022-03-15 | P4: TRIH | R4: تاريخ | U4: 1
B5: AHMED OSAMA | E5: YUKLE MEYAPAN KISI | I5: مسئول التحميل | L5: 16 | M5: 2022-03-20 | P5: LIMAN HAREKET | R5: وقت التحرك من الميناء | U5: 2
B6: =H45 &"_" & F45&"_" & D45 -> إسحاق_العطار_العدالة | E6: MUSTAHSIL ISMI | I6: مزرعة البضاعة | L6: 17 | M6: mas56536226 | P6: KONTEYNIR SERI NUMARASI | R6: رقم الكنتينر | U6: 3
E7: MALI ALAN SIMSAR | I7: اسم السمسار | L7: 18 | M7: hakan4 | P7: KONTEYNIR SIRA NO | R7: عدد التحميل | U7: 4
B8: ELFRNSYA | E8: MALIN ISLENDIGI ISLETME | I8: اسم المحطه | L8: 19 | M8: MEHMET KAHECI A | P8: KONTENIR FIRMASI | R8: شركة كونتينر | U8: 5
B9: 535665 | I9: رقم السيل | L9: 20 | M9: محمد | P9: SOFR ADI | R9: اسم السواق | U9: 6
B10: درجة أولى | E10: CLASS | I10: الصنف المحصول | L10: 21 | M10: 01250000 | P10: SOFOR TEL | R10: التليفون | U10: 7
B11: =T45&"_" & R45&"_" & P45 -> كيت اخضر_كيت احمر_كيت | E11: DEGREE | I11: النوع المحصول | L11: 22 | M11: 538/568 | P11: TIR PLAKA | R11: رقم السياره | U11: 8
B12: AHSAN | I12: اسم المصدر | L12: 23 | N12: 6 | P12: PARTI NO | R12: لوط | U12: 9
B13: YOUNS | I13: اسم المستورد | L13: 24 | M13: 4100$ | P13: TERMOKINK NAVLIUN | R13: نولون براد | U13: 10
B14: ROMANIA | E14: LIMAN ADI | I14: اسم الدوله | L14: 25 | P14: GUMAURK | R14: جمارك | U14: 11
B15: ALEX | I15: اسم الميناء | L15: 26 | P15: KONTENIR VE GEMI NAVLUN | R15: نولون المركب الكنتينر | U15: 12
B16: CIF | E16: Payment method | I16: طريقة الدفع | L16: 27 | M16: 5 | P16: GIDECEGI DERECE | R16: درجة الحراره | U16: 13
B17: EASY WAY | E17: =+P28 -> GUMAURK | I17: اسم الجمارك | L17: 28 | M17: KAPTAN | P17: GEMI ADL | R17: اسم المركب | U17: 14
D19: 1 | F19: 0.9 | H19: 0.8 | K19: 0.7 | L19: * | M19: 0.6 | O19: 0.5 | P19: MALIN KALITE DUZEYI | R19: جودة البضاعه
B21: يرتقالي / ORANGE | E21: برتقالي كاتم /DARK ORANGE | I21: اصفر على برتقالي / YELLOW ON ORANGE | N21: اصفر/ YELLOW | P21: RENK | R21: اللون
F23: CIF | H23: KOMISYON | K23: CIS | L23: * | M23: FOB | O23: EXW | P23: Payment method | R23: طريقة الدفع
L24: * | M24: NO | O24: YES | P24: GENERATOR | R24: مولد
G26: 5 | H26: ANOTHER COUNTRY | M26: EGYPT | P26: FREE TIM | R26: الوقت المتبقى
D28: EASY WAY | H28: Ocean Queen | L28: * | M28: AIR SEA LAND | P28: GUMAURK | R28: جمارك
B29: KALIBRE
B30: TOUTAL | L30: MIX | M30: LARG | N30: 64 | O30: 56 | P30: 48 | Q30: 40 | R30: 36 | S30: 32 | T30: KALIBRE
T31: حجم
B32: =SUM(H32:S32) -> 16 | P32: 1 | Q32: 4 | R32: 6 | S32: 5 | T32: ADET
B33: YUKLEME PLANI
F34: 10 | H34: 9 | J34: 8 | K34: 7 | M34: 6 | O34: 5 | P34: 4 | Q34: 3 | R34: 2 | S34: 1 | T34: نوع البضاعه
F35: ORANG | G35: ORANG | H35: ORANG | I35: ORANG | J35: ORANG | K35: ORANG | M35: ORANG | N35: ORANG | O35: ORANG | P35: ORANG | Q35: ORANG | R35: ORANG | S35: ORANG | T35: MALIN CINSI
A36: 80 | I36: 150 | J36: 120 | K36: 180 | M36: 120 | O36: 150 | P36: 120 | Q36: 180 | R36: 180 | S36: 180 | T36: NAMPER
F37: FRESH | G37: FRESH | H37: FRESH | I37: FRESH | J37: FRESH | K37: FRESH | M37: FRESH | N37: FRESH | O37: FRESH | P37: FRESH | Q37: FRESH | R37: FRESH | S37: FRESH | T37: FREESH/COLORING
B39: TOTAL | F39: 21 | H39: 20 | J39: 19 | K39: 18 | M39: 17 | O39: 16 | P39: 15 | Q39: 14 | R39: 13 | S39: 12 | T39: نوع البضاعه
F40: ORANG | G40: ORANG | H40: ORANG | I40: ORANG | J40: ORANG | K40: ORANG | M40: ORANG | N40: ORANG | O40: ORANG | P40: ORANG | Q40: ORANG | R40: ORANG | S40: ORANG | T40: ORANG
B41: =D41+F41+H41+K41+M41+O41+P41+Q41++R41+S41+B36+D36+F36+H36+K36+M36+O36+P36+Q36+R36+S36 -> 1110 | T41: KASA ADEDI
F42: FRESH | G42: FRESH | H42: FRESH | I42: FRESH | J42: FRESH | K42: FRESH | M42: FRESH | N42: FRESH | O42: FRESH | P42: FRESH | Q42: FRESH | R42: FRESH | S42: FRESH | T42: FREESH/COLORING
B44: Farmes | K44: PALET ADET | P44: items
B45: الاجمالى | D45: العدالة | F45: العطار | H45: إسحاق | K45: export | M45: operation process | P45: كيت | R45: كيت احمر | T45: كيت اخضر
B46: weight | C46: PALET ADET | D46: weight | E46: PALET ADET | F46: weight | G46: PALET ADET | H46: weight | I46: PALET ADET | K46: weight | L46: PALET ADET | M46: weight | N46: PALET ADET | P46: weight | Q46: PALET ADET | R46: weight | S46: PALET ADET | T46: weight | U46: PALET ADET
B47: =+C81 -> 17393 | C47: =+Q69 -> 21 | D47: =($B$47/$C$47)*E47 -> 4969.428571 | E47: 6 | F47: =($B$47/$C$47)*G47 -> 4969.428571 | G47: 6 | H47: =($B$47/$C$47)*I47 -> 7454.142857 | I47: 9 | K47: =($B$47/$C$47)*L47 -> 8282.380952 | L47: 10 | M47: =($B$47/$C$47)*N47 -> 9110.619048 | N47: 11 | P47: =($B$47/$C$47)*Q47 -> 8282.380952 | Q47: 10 | R47: =($B$47/$C$47)*S47 -> 4969.428571 | S47: 6 | T47: =($B$47/$C$47)*U47 -> 4141.190476 | U47: 5
C49: Weight | D49: العدد | F49: الوحدة/الوزن | G49: بيان المهمات | I49: MISSIONS | M49: weight BOXES | O49: weight BOX | P49: KASA ADETI | Q49: PALET ADET | R49: COLORS BOX | S49: AMBALAJ | U49: MALIN CINSI
C50: =F50*D50 -> 340 | D50: 20 | F50: 17 | G50: بالتة خشب صادر | I50: EXPORTED WOOD PALLET | M50: اجمالي الوزن | O50: وزن الصندوق | P50: عدد الصندوق | Q50: عدد البالتات | R50: لون الصندوق | S50: مقاس الصندوق
C51: =F51*D51 -> 17 | D51: 1 | F51: 17 | G51: شريحة خشب 80 × 120 | I51: WOOD SLICE 80*120 | M51: =P51*O51 -> 0 | O51: 0.47 | Q51: 21 | R51: BLUE | S51: 30*50*16 | U51: ORANG
C52: 80 | D52: 20 | F52: 4 | G52: برواز خشب | I52: WOOD FRAME | M52: =P52*O52 -> 0 | O52: 0.67 | R52: BLACK | S52: 30*40*27
D53: 20 | F53: غطاء | G53: غطاء اصلاي اسود | I53: BLACK COVER AHSAN | M53: 0 | O53: 0.605 | R53: BLUE | S53: 30*40*27
F54: غطاء | G54: غطاء الاحسن ازرق | I54: BLUE COVER ASILAY | M54: =P54*O54 -> 0 | O54: 0.685 | R54: BLUE | S54: 40*60*17
F55: زاوية | G55: زوايا الاحسن اسود | I55: BLACK SQUARE AHSAN | M55: 0 | O55: 0.57 | R55: BLUE | S55: 30*50*22
F56: زاوية | G56: زوايا اصلاي ازرق | I56: BLUE SQUARE ASILAY | M56: 0 | O56: 0.61 | R56: BLAK | S56: 30*50*22
F57: كيلو | G57: كلبس | I57: CLIPS | M57: 0 | O57: 0.42 | R57: BLUE | S57: 30*40*18
F58: كيلو | G58: شمبر | I58: CHAMBER | M58: 0 | O58: 0.45 | R58: BLAK | S58: 30*40*18
F59: بالالف | G59: استيكر حراري | I59: THERMAL STICKER | M59: 0 | O59: 0.45 | R59: BLUE | S59: 30*40*16
F60: بكره | G60: استيكر بيضحك | I60: SMAIL STICKER | M60: 0 | O60: 0.45 | R60: BLAK | S60: 30*40*16
F61: جهاز | G61: جهاز حرارة | I61: HEAT DEVICE | M61: 0 | O61: 0.67 | R61: BLACK | S61: 30*40*27
F62: كيس | G62: اير باج كيس هوائي | I62: AIR BAG | M62: 0 | O62: 0.605 | R62: BLUE | S62: 30*40*27
F63: عدد | G63: بيان بالت | I63: BALT REPORT | M63: 0 | S63: SHIKARA
F64: كيلو | G64: مناديل الاحسن | I64: TISSUE PAPER AHSAN | M64: 0 | O64: 0.85 | S64: KARTOUN OPEN TOP
F65: ص | G65: صندوق 30*40*27 ازرق | H65: صندوق 30*50*22 اسود | I65: BOX 30*40*27 BLUE | M65: 0 | O65: 0.85 | S65: KARTOUN TELSKOBEK
F66: ص | G66: صندوق 30*50*16 ازرق | I66: BOX 30*50*16 BLUE
F67: كيلو | G67: ورق جزاري30*50 | H67: صندوق 30*50*22 اسود
F68: كيلو | G68: ورق جزاري 30*40 | M68: 0
C69: =SUM(B50:C68) -> 437 | G69: TOTAL | M69: =SUM(M51:N68) -> 0 | P69: =SUM(P51:P68) -> 0 | Q69: =SUM(Q51:Q68) -> 21
B70: YUKLEME PLANI DOKUMU
C71: FIYAT | D71: NET KILO | F71: DARA | H71: GAFAF KILO | I71: BRUT KILO | M71: TOTAL | N71: BOKS | P71: PALET ADET | Q71: Box type and size | S71: Item
C72: Price | D72: Net Weight | F72: Tare weight | H72: GAFAF weight | I72: Gross Weight | M72: =P72*N72 -> 1680 | N72: 80 | P72: 21 | Q72: BOX 30*40*27BLUE | S72: ORANG
D73: =I73+H73-F73 -> 17393 | F73: =C69+M69 -> 437 | H73: 250 | I73: 17580 | M73: =P73*N73 -> 0 | Q73: BOX 30*40*27BLUE
M74: 0 | Q74: BOX 30*40*27BLACK
C75: Net Weight | D75: Gross Weight | F75: Net | G75: Gross | I75: Number of boxes | M75: 0 | Q75: BOX 30*50*16 BLUE
C76: =F76*I76 -> 17393 | E76: =G76*I76 -> 17580 | F76: =D73/I76 -> 10.35297619 | G76: =I73/I76 -> 10.46428571 | I76: 1680 | M76: 0 | Q76: BOX 30*50*16 BLUE
C77: =I77*G77 -> 0 | D77: =I77*F77 -> 0 | M77: 0 | Q77: BOX 30*50*22 BLACK | S77: ORANG
C78: =I78*G78 -> 0 | D78: 0 | M78: 0 | Q78: BOX 30*50*22 BLUE
C79: =I79*G79 -> 0 | D79: 0 | M79: 0 | Q79: BOX 30*50*22 BLUE
C80: =I80*G80 -> 0 | D80: =I80*F80 -> 0 | M80: 0 | Q80: BOX 30*50*22 BLUE
C81: =SUM(C76:C80) -> 17393 | D81: =SUM(D76:E80) -> 17580 | F81: =+F76+F77+F78+F79+F80 -> 10.35297619 | G81: =+G80+G79+G78+G77+G76 -> 10.46428571 | I81: =SUM(I76:K80) -> 1680 | M81: =SUM(M71:M80) -> 1680 | P81: =SUM(P72:P80) -> 21 | Q81: TOTAL
K82: =B41-I81 -> -570 | M82: =P69-M81 -> -1680 | P82: =Q69-P81 -> 0

Sheet hakan5
B1: ASILAY For Agriculture Crops
F2: بيان بتحميل الحاوية أو ( البراد)
B3: TIR YUKLEME PLANI
B4: CONSTANTA | E4: GIDECEGI SEHIR | I4: اسم البلد | L4: 15 | M4: 2022-03-15 | P4: TRIH | R4: تاريخ | U4: 1
B5: AHMED OSAMA | E5: YUKLE MEYAPAN KISI | I5: مسئول التحميل | L5: 16 | M5: 2022-03-20 | P5: LIMAN HAREKET | R5: وقت التحرك من الميناء | U5: 2
B6: =H45 &"_" & F45&"_" & D45 -> إسحاق_العطار_العدالة | E6: MUSTAHSIL ISMI | I6: مزرعة البضاعة | L6: 17 | M6: mas56536226 | P6: KONTEYNIR SERI NUMARASI | R6: رقم الكنتينر | U6: 3
E7: MALI ALAN SIMSAR | I7: اسم السمسار | L7: 18 | M7: hakan5 | P7: KONTEYNIR SIRA NO | R7: عدد التحميل | U7: 4
B8: ELFRNSYA | E8: MALIN ISLENDIGI ISLETME | I8: اسم المحطه | L8: 19 | M8: MEHMET KAHECI A | P8: KONTENIR FIRMASI | R8: شركة كونتينر | U8: 5
B9: 535665 | I9: رقم السيل | L9: 20 | M9: محمد | P9: SOFR ADI | R9: اسم السواق | U9: 6
B10: درجة أولى | E10: CLASS | I10: الصنف المحصول | L10: 21 | M10: 01250000 | P10: SOFOR TEL | R10: التليفون | U10: 7
B11: =T45&"_" & R45&"_" & P45 -> كيت اخضر_كيت احمر_كيت | E11: DEGREE | I11: النوع المحصول | L11: 22 | M11: 538/568 | P11: TIR PLAKA | R11: رقم السياره | U11: 8
B12: AHSAN | I12: اسم المصدر | L12: 23 | N12: 6 | P12: PARTI NO | R12: لوط | U12: 9
B13: YOUNS | I13: اسم المستورد | L13: 24 | M13: 4100$ | P13: TERMOKINK NAVLIUN | R13: نولون براد | U13: 10
B14: ROMANIA | E14: LIMAN ADI | I14: اسم الدوله | L14: 25 | P14: GUMAURK | R14: جمارك | U14: 11
B15: ALEX | I15: اسم الميناء | L15: 26 | P15: KONTENIR VE GEMI NAVLUN | R15: نولون المركب الكنتينر | U15: 12
B16: CIF | E16: Payment method | I16: طريقة الدفع | L16: 27 | M16: 5 | P16: GIDECEGI DERECE | R16: درجة الحراره | U16: 13
B17: EASY WAY | E17: =+P28 -> GUMAURK | I17: اسم الجمارك | L17: 28 | M17: KAPTAN | P17: GEMI ADL | R17: اسم المركب | U17: 14
D19: 1 | F19: 0.9 | H19: 0.8 | K19: 0.7 | L19: * | M19: 0.6 | O19: 0.5 | P19: MALIN KALITE DUZEYI | R19: جودة البضاعه
B21: يرتقالي / ORANGE | E21: برتقالي كاتم /DARK ORANGE | I21: اصفر على برتقالي / YELLOW ON ORANGE | N21: اصفر/ YELLOW | P21: RENK | R21: اللون
F23: CIF | H23: KOMISYON | K23: CIS | L23: * | M23: FOB | O23: EXW | P23: Payment method | R23: طريقة الدفع
L24: * | M24: NO | O24: YES | P24: GENERATOR | R24: مولد
G26: 5 | H26: ANOTHER COUNTRY | M26: EGYPT | P26: FREE TIM | R26: الوقت المتبقى
D28: EASY WAY | H28: Ocean Queen | L28: * | M28: AIR SEA LAND | P28: GUMAURK | R28: جمارك
B29: KALIBRE
B30: TOUTAL | L30: MIX | M30: LARG | N30: 64 | O30: 56 | P30: 48 | Q30: 40 | R30: 36 | S30: 32 | T30: KALIBRE
T31: حجم
B32: =SUM(H32:S32) -> 16 | P32: 1 | Q32: 4 | R32: 6 | S32: 5 | T32: ADET
B33: YUKLEME PLANI
F34: 10 | H34: 9 | J34: 8 | K34: 7 | M34: 6 | O34: 5 | P34: 4 | Q34: 3 | R34: 2 | S34: 1 | T34: نوع البضاعه
F35: ORANG | G35: ORANG | H35: ORANG | I35: ORANG | J35: ORANG | K35: ORANG | M35: ORANG | N35: ORANG | O35: ORANG | P35: ORANG | Q35: ORANG | R35: ORANG | S35: ORANG | T35: MALIN CINSI
A36: 80 | I36: 150 | J36: 120 | K36: 180 | M36: 120 | O36: 150 | P36: 120 | Q36: 180 | R36: 180 | S36: 180 | T36: NAMPER
F37: FRESH | G37: FRESH | H37: FRESH | I37: FRESH | J37: FRESH | K37: FRESH | M37: FRESH | N37: FRESH | O37: FRESH | P37: FRESH | Q37: FRESH | R37: FRESH | S37: FRESH | T37: FREESH/COLORING
B39: TOTAL | F39: 21 | H39: 20 | J39: 19 | K39: 18 | M39: 17 | O39: 16 | P39: 15 | Q39: 14 | R39: 13 | S39: 12 | T39: نوع البضاعه
F40: ORANG | G40: ORANG | H40: ORANG | I40: ORANG | J40: ORANG | K40: ORANG | M40: ORANG | N40: ORANG | O40: ORANG | P40: ORANG | Q40: ORANG | R40: ORANG | S40: ORANG | T40: ORANG
B41: =D41+F41+H41+K41+M41+O41+P41+Q41++R41+S41+B36+D36+F36+H36+K36+M36+O36+P36+Q36+R36+S36 -> 1110 | T41: KASA ADEDI
F42: FRESH | G42: FRESH | H42: FRESH | I42: FRESH | J42: FRESH | K42: FRESH | M42: FRESH | N42: FRESH | O42: FRESH | P42: FRESH | Q42: FRESH | R42: FRESH | S42: FRESH | T42: FREESH/COLORING
B44: Farmes | K44: PALET ADET | P44: items
B45: الاجمالى | D45: العدالة | F45: العطار | H45: إسحاق | K45: export | M45: operation process | P45: كيت | R45: كيت احمر | T45: كيت اخضر
B46: weight | C46: PALET ADET | D46: weight | E46: PALET ADET | F46: weight | G46: PALET ADET | H46: weight | I46: PALET ADET | K46: weight | L46: PALET ADET | M46: weight | N46: PALET ADET | P46: weight | Q46: PALET ADET | R46: weight | S46: PALET ADET | T46: weight | U46: PALET ADET
B47: =+C81 -> 17393 | C47: =+Q69 -> 21 | D47: =($B$47/$C$47)*E47 -> 4969.428571 | E47: 6 | F47: =($B$47/$C$47)*G47 -> 4969.428571 | G47: 6 | H47: =($B$47/$C$47)*I47 -> 7454.142857 | I47: 9 | K47: =($B$47/$C$47)*L47 -> 8282.380952 | L47: 10 | M47: =($B$47/$C$47)*N47 -> 9110.619048 | N47: 11 | P47: =($B$47/$C$47)*Q47 -> 8282.380952 | Q47: 10 | R47: =($B$47/$C$47)*S47 -> 4969.428571 | S47: 6 | T47: =($B$47/$C$47)*U47 -> 4141.190476 | U47: 5
C49: Weight | D49: العدد | F49: الوحدة/الوزن | G49: بيان المهمات | I49: MISSIONS | M49: weight BOXES | O49: weight BOX | P49: KASA ADETI | Q49: PALET ADET | R49: COLORS BOX | S49: AMBALAJ | U49: MALIN CINSI
C50: =F50*D50 -> 340 | D50: 20 | F50: 17 | G50: بالتة خشب صادر | I50: EXPORTED WOOD PALLET | M50: اجمالي الوزن | O50: وزن الصندوق | P50: عدد الصندوق | Q50: عدد البالتات | R50: لون الصندوق | S50: مقاس الصندوق
C51: =F51*D51 -> 17 | D51: 1 | F51: 17 | G51: شريحة خشب 80 × 120 | I51: WOOD SLICE 80*120 | M51: =P51*O51 -> 0 | O51: 0.47 | Q51: 21 | R51: BLUE | S51: 30*50*16 | U51: ORANG
C52: 80 | D52: 20 | F52: 4 | G52: برواز خشب | I52: WOOD FRAME | M52: =P52*O52 -> 0 | O52: 0.67 | R52: BLACK | S52: 30*40*27
D53: 20 | F53: غطاء | G53: غطاء اصلاي اسود | I53: BLACK COVER AHSAN | M53: 0 | O53: 0.605 | R53: BLUE | S53: 30*40*27
F54: غطاء | G54: غطاء الاحسن ازرق | I54: BLUE COVER ASILAY | M54: =P54*O54 -> 0 | O54: 0.685 | R54: BLUE | S54: 40*60*17
F55: زاوية | G55: زوايا الاحسن اسود | I55: BLACK SQUARE AHSAN | M55: 0 | O55: 0.57 | R55: BLUE | S55: 30*50*22
F56: زاوية | G56: زوايا اصلاي ازرق | I56: BLUE SQUARE ASILAY | M56: 0 | O56: 0.61 | R56: BLAK | S56: 30*50*22
F57: كيلو | G57: كلبس | I57: CLIPS | M57: 0 | O57: 0.42 | R57: BLUE | S57: 30*40*18
F58: كيلو | G58: شمبر | I58: CHAMBER | M58: 0 | O58: 0.45 | R58: BLAK | S58: 30*40*18
F59: بالالف | G59: استيكر حراري | I59: THERMAL STICKER | M59: 0 | O59: 0.45 | R59: BLUE | S59: 30*40*16
F60: بكره | G60: استيكر بيضحك | I60: SMAIL STICKER | M60: 0 | O60: 0.45 | R60: BLAK | S60: 30*40*16
F61: جهاز | G61: جهاز حرارة | I61: HEAT DEVICE | M61: 0 | O61: 0.67 | R61: BLACK | S61: 30*40*27
F62: كيس | G62: اير باج كيس هوائي | I62: AIR BAG | M62: 0 | O62: 0.605 | R62: BLUE | S62: 30*40*27
F63: عدد | G63: بيان بالت | I63: BALT REPORT | M63: 0 | S63: SHIKARA
F64: كيلو | G64: مناديل الاحسن | I64: TISSUE PAPER AHSAN | M64: 0 | O64: 0.85 | S64: KARTOUN OPEN TOP
F65: ص | G65: صندوق 30*40*27 ازرق | H65: صندوق 30*50*22 اسود | I65: BOX 30*40*27 BLUE | M65: 0 | O65: 0.85 | S65: KARTOUN TELSKOBEK
F66: ص | G66: صندوق 30*50*16 ازرق | I66: BOX 30*50*16 BLUE
F67: كيلو | G67: ورق جزاري30*50 | H67: صندوق 30*50*22 اسود
F68: كيلو | G68: ورق جزاري 30*40 | M68: 0
C69: =SUM(B50:C68) -> 437 | G69: TOTAL | M69: =SUM(M51:N68) -> 0 | P69: =SUM(P51:P68) -> 0 | Q69: =SUM(Q51:Q68) -> 21
B70: YUKLEME PLANI DOKUMU
C71: FIYAT | D71: NET KILO | F71: DARA | H71: GAFAF KILO | I71: BRUT KILO | M71: TOTAL | N71: BOKS | P71: PALET ADET | Q71: Box type and size | S71: Item
C72: Price | D72: Net Weight | F72: Tare weight | H72: GAFAF weight | I72: Gross Weight | M72: =P72*N72 -> 1680 | N72: 80 | P72: 21 | Q72: BOX 30*40*27BLUE | S72: ORANG
D73: =I73+H73-F73 -> 17393 | F73: =C69+M69 -> 437 | H73: 250 | I73: 17580 | M73: =P73*N73 -> 0 | Q73: BOX 30*40*27BLUE
M74: 0 | Q74: BOX 30*40*27BLACK
C75: Net Weight | D75: Gross Weight | F75: Net | G75: Gross | I75: Number of boxes | M75: 0 | Q75: BOX 30*50*16 BLUE
C76: =F76*I76 -> 17393 | E76: =G76*I76 -> 17580 | F76: =D73/I76 -> 10.35297619 | G76: =I73/I76 -> 10.46428571 | I76: 1680 | M76: 0 | Q76: BOX 30*50*16 BLUE
C77: =I77*G77 -> 0 | D77: =I77*F77 -> 0 | M77: 0 | Q77: BOX 30*50*22 BLACK | S77: ORANG
C78: =I78*G78 -> 0 | D78: 0 | M78: 0 | Q78: BOX 30*50*22 BLUE
C79: =I79*G79 -> 0 | D79: 0 | M79: 0 | Q79: BOX 30*50*22 BLUE
C80: =I80*G80 -> 0 | D80: =I80*F80 -> 0 | M80: 0 | Q80: BOX 30*50*22 BLUE
C81: =SUM(C76:C80) -> 17393 | D81: =SUM(D76:E80) -> 17580 | F81: =+F76+F77+F78+F79+F80 -> 10.35297619 | G81: =+G80+G79+G78+G77+G76 -> 10.46428571 | I81: =SUM(I76:K80) -> 1680 | M81: =SUM(M71:M80) -> 1680 | P81: =SUM(P72:P80) -> 21 | Q81: TOTAL
K82: =B41-I81 -> -570 | M82: =P69-M81 -> -1680 | P82: =Q69-P81 -> 0

Sheet hakan6
B1: ASILAY For Agriculture Crops
F2: بيان بتحميل الحاوية أو ( البراد)
B3: TIR YUKLEME PLANI
B4: CONSTANTA | E4: GIDECEGI SEHIR | I4: اسم البلد | L4: 15 | M4: 2022-03-15 | P4: TRIH | R4: تاريخ | U4: 1
B5: AHMED OSAMA | E5: YUKLE MEYAPAN KISI | I5: مسئول التحميل | L5: 16 | M5: 2022-03-20 | P5: LIMAN HAREKET | R5: وقت التحرك من الميناء | U5: 2
B6: =H45 &"_" & F45&"_" & D45 -> إسحاق_العطار_العدالة | E6: MUSTAHSIL ISMI | I6: مزرعة البضاعة | L6: 17 | M6: mas56536226 | P6: KONTEYNIR SERI NUMARASI | R6: رقم الكنتينر | U6: 3
E7: MALI ALAN SIMSAR | I7: اسم السمسار | L7: 18 | M7: hakan6 | P7: KONTEYNIR SIRA NO | R7: عدد التحميل | U7: 4
B8: ELFRNSYA | E8: MALIN ISLENDIGI ISLETME | I8: اسم المحطه | L8: 19 | M8: MEHMET KAHECI A | P8: KONTENIR FIRMASI | R8: شركة كونتينر | U8: 5
B9: 535665 | I9: رقم السيل | L9: 20 | M9: محمد | P9: SOFR ADI | R9: اسم السواق | U9: 6
B10: درجة أولى | E10: CLASS | I10: الصنف المحصول | L10: 21 | M10: 01250000 | P10: SOFOR TEL | R10: التليفون | U10: 7
B11: =T45&"_" & R45&"_" & P45 -> كيت اخضر_كيت احمر_كيت | E11: DEGREE | I11: النوع المحصول | L11: 22 | M11: 538/568 | P11: TIR PLAKA | R11: رقم السياره | U11: 8
B12: AHSAN | I12: اسم المصدر | L12: 23 | N12: 6 | P12: PARTI NO | R12: لوط | U12: 9
B13: YOUNS | I13: اسم المستورد | L13: 24 | M13: 4100$ | P13: TERMOKINK NAVLIUN | R13: نولون براد | U13: 10
B14: ROMANIA | E14: LIMAN ADI | I14: اسم الدوله | L14: 25 | P14: GUMAURK | R14: جمارك | U14: 11
B15: ALEX | I15: اسم الميناء | L15: 26 | P15: KONTENIR VE GEMI NAVLUN | R15: نولون المركب الكنتينر | U15: 12
B16: CIF | E16: Payment method | I16: طريقة الدفع | L16: 27 | M16: 5 | P16: GIDECEGI DERECE | R16: درجة الحراره | U16: 13
B17: EASY WAY | E17: =+P28 -> GUMAURK | I17: اسم الجمارك | L17: 28 | M17: KAPTAN | P17: GEMI ADL | R17: اسم المركب | U17: 14
D19: 1 | F19: 0.9 | H19: 0.8 | K19: 0.7 | L19: * | M19: 0.6 | O19: 0.5 | P19: MALIN KALITE DUZEYI | R19: جودة البضاعه
B21: يرتقالي / ORANGE | E21: برتقالي كاتم /DARK ORANGE | I21: اصفر على برتقالي / YELLOW ON ORANGE | N21: اصفر/ YELLOW | P21: RENK | R21: اللون
F23: CIF | H23: KOMISYON | K23: CIS | L23: * | M23: FOB | O23: EXW | P23: Payment method | R23: طريقة الدفع
L24: * | M24: NO | O24: YES | P24: GENERATOR | R24: مولد
G26: 5 | H26: ANOTHER COUNTRY | M26: EGYPT | P26: FREE TIM | R26: الوقت المتبقى
D28: EASY WAY | H28: Ocean Queen | L28: * | M28: AIR SEA LAND | P28: GUMAURK | R28: جمارك
B29: KALIBRE
B30: TOUTAL | L30: MIX | M30: LARG | N30: 64 | O30: 56 | P30: 48 | Q30: 40 | R30: 36 | S30: 32 | T30: KALIBRE
T31: حجم
B32: =SUM(H32:S32) -> 16 | P32: 1 | Q32: 4 | R32: 6 | S32: 5 | T32: ADET
B33: YUKLEME PLANI
F34: 10 | H34: 9 | J34: 8 | K34: 7 | M34: 6 | O34: 5 | P34: 4 | Q34: 3 | R34: 2 | S34: 1 | T34: نوع البضاعه
F35: ORANG | G35: ORANG | H35: ORANG | I35: ORANG | J35: ORANG | K35: ORANG | M35: ORANG | N35: ORANG | O35: ORANG | P35: ORANG | Q35: ORANG | R35: ORANG | S35: ORANG | T35: MALIN CINSI
A36: 80 | I36: 150 | J36: 120 | K36: 180 | M36: 120 | O36: 150 | P36: 120 | Q36: 180 | R36: 180 | S36: 180 | T36: NAMPER
F37: FRESH | G37: FRESH | H37: FRESH | I37: FRESH | J37: FRESH | K37: FRESH | M37: FRESH | N37: FRESH | O37: FRESH | P37: FRESH | Q37: FRESH | R37: FRESH | S37: FRESH | T37: FREESH/COLORING
B39: TOTAL | F39: 21 | H39: 20 | J39: 19 | K39: 18 | M39: 17 | O39: 16 | P39: 15 | Q39: 14 | R39: 13 | S39: 12 | T39: نوع البضاعه
F40: ORANG | G40: ORANG | H40: ORANG | I40: ORANG | J40: ORANG | K40: ORANG | M40: ORANG | N40: ORANG | O40: ORANG | P40: ORANG | Q40: ORANG | R40: ORANG | S40: ORANG | T40: ORANG
B41: =D41+F41+H41+K41+M41+O41+P41+Q41++R41+S41+B36+D36+F36+H36+K36+M36+O36+P36+Q36+R36+S36 -> 1110 | T41: KASA ADEDI
F42: FRESH | G42: FRESH | H42: FRESH | I42: FRESH | J42: FRESH | K42: FRESH | M42: FRESH | N42: FRESH | O42: FRESH | P42: FRESH | Q42: FRESH | R42: FRESH | S42: FRESH | T42: FREESH/COLORING
B44: Farmes | K44: PALET ADET | P44: items
B45: الاجمالى | D45: العدالة | F45: العطار | H45: إسحاق | K45: export | M45: operation process | P45: كيت | R45: كيت احمر | T45: كيت اخضر
B46: weight | C46: PALET ADET | D46: weight | E46: PALET ADET | F46: weight | G46: PALET ADET | H46: weight | I46: PALET ADET | K46: weight | L46: PALET ADET | M46: weight | N46: PALET ADET | P46: weight | Q46: PALET ADET | R46: weight | S46: PALET ADET | T46: weight | U46: PALET ADET
B47: =+C81 -> 17393 | C47: =+Q69 -> 21 | D47: =($B$47/$C$47)*E47 -> 4969.428571 | E47: 6 | F47: =($B$47/$C$47)*G47 -> 4969.428571 | G47: 6 | H47: =($B$47/$C$47)*I47 -> 7454.142857 | I47: 9 | K47: =($B$47/$C$47)*L47 -> 8282.380952 | L47: 10 | M47: =($B$47/$C$47)*N47 -> 9110.619048 | N47: 11 | P47: =($B$47/$C$47)*Q47 -> 8282.380952 | Q47: 10 | R47: =($B$47/$C$47)*S47 -> 4969.428571 | S47: 6 | T47: =($B$47/$C$47)*U47 -> 4141.190476 | U47: 5
C49: Weight | D49: العدد | F49: الوحدة/الوزن | G49: بيان المهمات | I49: MISSIONS | M49: weight BOXES | O49: weight BOX | P49: KASA ADETI | Q49: PALET ADET | R49: COLORS BOX | S49: AMBALAJ | U49: MALIN CINSI
C50: =F50*D50 -> 340 | D50: 20 | F50: 17 | G50: بالتة خشب صادر | I50: EXPORTED WOOD PALLET | M50: اجمالي الوزن | O50: وزن الصندوق | P50: عدد الصندوق | Q50: عدد البالتات | R50: لون الصندوق | S50: مقاس الصندوق
C51: =F51*D51 -> 17 | D51: 1 | F51: 17 | G51: شريحة خشب 80 × 120 | I51: WOOD SLICE 80*120 | M51: =P51*O51 -> 0 | O51: 0.47 | Q51: 21 | R51: BLUE | S51: 30*50*16 | U51: ORANG
C52: 80 | D52: 20 | F52: 4 | G52: برواز خشب | I52: WOOD FRAME | M52: =P52*O52 -> 0 | O52: 0.67 | R52: BLACK | S52: 30*40*27
D53: 20 | F53: غطاء | G53: غطاء اصلاي اسود | I53: BLACK COVER AHSAN | M53: 0 | O53: 0.605 | R53: BLUE | S53: 30*40*27
F54: غطاء | G54: غطاء الاحسن ازرق | I54: BLUE COVER ASILAY | M54: =P54*O54 -> 0 | O54: 0.685 | R54: BLUE | S54: 40*60*17
F55: زاوية | G55: زوايا الاحسن اسود | I55: BLACK SQUARE AHSAN | M55: 0 | O55: 0.57 | R55: BLUE | S55: 30*50*22
F56: زاوية | G56: زوايا اصلاي ازرق | I56: BLUE SQUARE ASILAY | M56: 0 | O56: 0.61 | R56: BLAK | S56: 30*50*22
F57: كيلو | G57: كلبس | I57: CLIPS | M57: 0 | O57: 0.42 | R57: BLUE | S57: 30*40*18
F58: كيلو | G58: شمبر | I58: CHAMBER | M58: 0 | O58: 0.45 | R58: BLAK | S58: 30*40*18
F59: بالالف | G59: استيكر حراري | I59: THERMAL STICKER | M59: 0 | O59: 0.45 | R59: BLUE | S59: 30*40*16
F60: بكره | G60: استيكر بيضحك | I60: SMAIL STICKER | M60: 0 | O60: 0.45 | R60: BLAK | S60: 30*40*16
F61: جهاز | G61: جهاز حرارة | I61: HEAT DEVICE | M61: 0 | O61: 0.67 | R61: BLACK | S61: 30*40*27
F62: كيس | G62: اير باج كيس هوائي | I62: AIR BAG | M62: 0 | O62: 0.605 | R62: BLUE | S62: 30*40*27
F63: عدد | G63: بيان بالت | I63: BALT REPORT | M63: 0 | S63: SHIKARA
F64: كيلو | G64: مناديل الاحسن | I64: TISSUE PAPER AHSAN | M64: 0 | O64: 0.85 | S64: KARTOUN OPEN TOP
F65: ص | G65: صندوق 30*40*27 ازرق | H65: صندوق 30*50*22 اسود | I65: BOX 30*40*27 BLUE | M65: 0 | O65: 0.85 | S65: KARTOUN TELSKOBEK
F66: ص | G66: صندوق 30*50*16 ازرق | I66: BOX 30*50*16 BLUE
F67: كيلو | G67: ورق جزاري30*50 | H67: صندوق 30*50*22 اسود
F68: كيلو | G68: ورق جزاري 30*40 | M68: 0
C69: =SUM(B50:C68) -> 437 | G69: TOTAL | M69: =SUM(M51:N68) -> 0 | P69: =SUM(P51:P68) -> 0 | Q69: =SUM(Q51:Q68) -> 21
B70: YUKLEME PLANI DOKUMU
C71: FIYAT | D71: NET KILO | F71: DARA | H71: GAFAF KILO | I71: BRUT KILO | M71: TOTAL | N71: BOKS | P71: PALET ADET | Q71: Box type and size | S71: Item
C72: Price | D72: Net Weight | F72: Tare weight | H72: GAFAF weight | I72: Gross Weight | M72: =P72*N72 -> 1680 | N72: 80 | P72: 21 | Q72: BOX 30*40*27BLUE | S72: ORANG
D73: =I73+H73-F73 -> 17393 | F73: =C69+M69 -> 437 | H73: 250 | I73: 17580 | M73: =P73*N73 -> 0 | Q73: BOX 30*40*27BLUE
M74: 0 | Q74: BOX 30*40*27BLACK
C75: Net Weight | D75: Gross Weight | F75: Net | G75: Gross | I75: Number of boxes | M75: 0 | Q75: BOX 30*50*16 BLUE
C76: =F76*I76 -> 17393 | E76: =G76*I76 -> 17580 | F76: =D73/I76 -> 10.35297619 | G76: =I73/I76 -> 10.46428571 | I76: 1680 | M76: 0 | Q76: BOX 30*50*16 BLUE
C77: =I77*G77 -> 0 | D77: =I77*F77 -> 0 | M77: 0 | Q77: BOX 30*50*22 BLACK | S77: ORANG
C78: =I78*G78 -> 0 | D78: 0 | M78: 0 | Q78: BOX 30*50*22 BLUE
C79: =I79*G79 -> 0 | D79: 0 | M79: 0 | Q79: BOX 30*50*22 BLUE
C80: =I80*G80 -> 0 | D80: =I80*F80 -> 0 | M80: 0 | Q80: BOX 30*50*22 BLUE
C81: =SUM(C76:C80) -> 17393 | D81: =SUM(D76:E80) -> 17580 | F81: =+F76+F77+F78+F79+F80 -> 10.35297619 | G81: =+G80+G79+G78+G77+G76 -> 10.46428571 | I81: =SUM(I76:K80) -> 1680 | M81: =SUM(M71:M80) -> 1680 | P81: =SUM(P72:P80) -> 21 | Q81: TOTAL
K82: =B41-I81 -> -570 | M82: =P69-M81 -> -1680 | P82: =Q69-P81 -> 0

Sheet hakan7
B1: ASILAY For Agriculture Crops
F2: بيان بتحميل الحاوية أو ( البراد)
B3: TIR YUKLEME PLANI
B4: CONSTANTA | E4: GIDECEGI SEHIR | I4: اسم البلد | L4: 15 | M4: 2022-03-15 | P4: TRIH | R4: تاريخ | U4: 1
B5: AHMED OSAMA | E5: YUKLE MEYAPAN KISI | I5: مسئول التحميل | L5: 16 | M5: 2022-03-20 | P5: LIMAN HAREKET | R5: وقت التحرك من الميناء | U5: 2
B6: =H45 &"_" & F45&"_" & D45 -> إسحاق_العطار_العدالة | E6: MUSTAHSIL ISMI | I6: مزرعة البضاعة | L6: 17 | M6: mas56536226 | P6: KONTEYNIR SERI NUMARASI | R6: رقم الكنتينر | U6: 3
E7: MALI ALAN SIMSAR | I7: اسم السمسار | L7: 18 | M7: hakan7 | P7: KONTEYNIR SIRA NO | R7: عدد التحميل | U7: 4
B8: ELFRNSYA | E8: MALIN ISLENDIGI ISLETME | I8: اسم المحطه | L8: 19 | M8: MEHMET KAHECI A | P8: KONTENIR FIRMASI | R8: شركة كونتينر | U8: 5
B9: 535665 | I9: رقم السيل | L9: 20 | M9: محمد | P9: SOFR ADI | R9: اسم السواق | U9: 6
B10: درجة أولى | E10: CLASS | I10: الصنف المحصول | L10: 21 | M10: 01250000 | P10: SOFOR TEL | R10: التليفون | U10: 7
B11: =T45&"_" & R45&"_" & P45 -> كيت اخضر_كيت احمر_كيت | E11: DEGREE | I11: النوع المحصول | L11: 22 | M11: 538/568 | P11: TIR PLAKA | R11: رقم السياره | U11: 8
B12: AHSAN | I12: اسم المصدر | L12: 23 | N12: 6 | P12: PARTI NO | R12: لوط | U12: 9
B13: YOUNS | I13: اسم المستورد | L13: 24 | M13: 4100$ | P13: TERMOKINK NAVLIUN | R13: نولون براد | U13: 10
B14: ROMANIA | E14: LIMAN ADI | I14: اسم الدوله | L14: 25 | P14: GUMAURK | R14: جمارك | U14: 11
B15: ALEX | I15: اسم الميناء | L15: 26 | P15: KONTENIR VE GEMI NAVLUN | R15: نولون المركب الكنتينر | U15: 12
B16: CIF | E16: Payment method | I16: طريقة الدفع | L16: 27 | M16: 5 | P16: GIDECEGI DERECE | R16: درجة الحراره | U16: 13
B17: EASY WAY | E17: =+P28 -> GUMAURK | I17: اسم الجمارك | L17: 28 | M17: KAPTAN | P17: GEMI ADL | R17: اسم المركب | U17: 14
D19: 1 | F19: 0.9 | H19: 0.8 | K19: 0.7 | L19: * | M19: 0.6 | O19: 0.5 | P19: MALIN KALITE DUZEYI | R19: جودة البضاعه
B21: يرتقالي / ORANGE | E21: برتقالي كاتم /DARK ORANGE | I21: اصفر على برتقالي / YELLOW ON ORANGE | N21: اصفر/ YELLOW | P21: RENK | R21: اللون
F23: CIF | H23: KOMISYON | K23: CIS | L23: * | M23: FOB | O23: EXW | P23: Payment method | R23: طريقة الدفع
L24: * | M24: NO | O24: YES | P24: GENERATOR | R24: مولد
G26: 5 | H26: ANOTHER COUNTRY | M26: EGYPT | P26: FREE TIM | R26: الوقت المتبقى
D28: EASY WAY | H28: Ocean Queen | L28: * | M28: AIR SEA LAND | P28: GUMAURK | R28: جمارك
B29: KALIBRE
B30: TOUTAL | L30: MIX | M30: LARG | N30: 64 | O30: 56 | P30: 48 | Q30: 40 | R30: 36 | S30: 32 | T30: KALIBRE
T31: حجم
B32: =SUM(H32:S32) -> 16 | P32: 1 | Q32: 4 | R32: 6 | S32: 5 | T32: ADET
B33: YUKLEME PLANI
F34: 10 | H34: 9 | J34: 8 | K34: 7 | M34: 6 | O34: 5 | P34: 4 | Q34: 3 | R34: 2 | S34: 1 | T34: نوع البضاعه
F35: ORANG | G35: ORANG | H35: ORANG | I35: ORANG | J35: ORANG | K35: ORANG | M35: ORANG | N35: ORANG | O35: ORANG | P35: ORANG | Q35: ORANG | R35: ORANG | S35: ORANG | T35: MALIN CINSI
A36: 80 | I36: 150 | J36: 120 | K36: 180 | M36: 120 | O36: 150 | P36: 120 | Q36: 180 | R36: 180 | S36: 180 | T36: NAMPER
F37: FRESH | G37: FRESH | H37: FRESH | I37: FRESH | J37: FRESH | K37: FRESH | M37: FRESH | N37: FRESH | O37: FRESH | P37: FRESH | Q37: FRESH | R37: FRESH | S37: FRESH | T37: FREESH/COLORING
B39: TOTAL | F39: 21 | H39: 20 | J39: 19 | K39: 18 | M39: 17 | O39: 16 | P39: 15 | Q39: 14 | R39: 13 | S39: 12 | T39: نوع البضاعه
F40: ORANG | G40: ORANG | H40: ORANG | I40: ORANG | J40: ORANG | K40: ORANG | M40: ORANG | N40: ORANG | O40: ORANG | P40: ORANG | Q40: ORANG | R40: ORANG | S40: ORANG | T40: ORANG
B41: =D41+F41+H41+K41+M41+O41+P41+Q41++R41+S41+B36+D36+F36+H36+K36+M36+O36+P36+Q36+R36+S36 -> 1110 | T41: KASA ADEDI
F42: FRESH | G42: FRESH | H42: FRESH | I42: FRESH | J42: FRESH | K42: FRESH | M42: FRESH | N42: FRESH | O42: FRESH | P42: FRESH | Q42: FRESH | R42: FRESH | S42: FRESH | T42: FREESH/COLORING
B44: Farmes | K44: PALET ADET | P44: items
B45: الاجمالى | D45: العدالة | F45: العطار | H45: إسحاق | K45: export | M45: operation process | P45: كيت | R45: كيت احمر | T45: كيت اخضر
B46: weight | C46: PALET ADET | D46: weight | E46: PALET ADET | F46: weight | G46: PALET ADET | H46: weight | I46: PALET ADET | K46: weight | L46: PALET ADET | M46: weight | N46: PALET ADET | P46: weight | Q46: PALET ADET | R46: weight | S46: PALET ADET | T46: weight | U46: PALET ADET
B47: =+C81 -> 17393 | C47: =+Q69 -> 21 | D47: =($B$47/$C$47)*E47 -> 4969.428571 | E47: 6 | F47: =($B$47/$C$47)*G47 -> 4969.428571 | G47: 6 | H47: =($B$47/$C$47)*I47 -> 7454.142857 | I47: 9 | K47: =($B$47/$C$47)*L47 -> 8282.380952 | L47: 10 | M47: =($B$47/$C$47)*N47 -> 9110.619048 | N47: 11 | P47: =($B$47/$C$47)*Q47 -> 8282.380952 | Q47: 10 | R47: =($B$47/$C$47)*S47 -> 4969.428571 | S47: 6 | T47: =($B$47/$C$47)*U47 -> 4141.190476 | U47: 5
C49: Weight | D49: العدد | F49: الوحدة/الوزن | G49: بيان المهمات | I49: MISSIONS | M49: weight BOXES | O49: weight BOX | P49: KASA ADETI | Q49: PALET ADET | R49: COLORS BOX | S49: AMBALAJ | U49: MALIN CINSI
C50: =F50*D50 -> 340 | D50: 20 | F50: 17 | G50: بالتة خشب صادر | I50: EXPORTED WOOD PALLET | M50: اجمالي الوزن | O50: وزن الصندوق | P50: عدد الصندوق | Q50: عدد البالتات | R50: لون الصندوق | S50: مقاس الصندوق
C51: =F51*D51 -> 17 | D51: 1 | F51: 17 | G51: شريحة خشب 80 × 120 | I51: WOOD SLICE 80*120 | M51: =P51*O51 -> 0 | O51: 0.47 | Q51: 21 | R51: BLUE | S51: 30*50*16 | U51: ORANG
C52: 80 | D52: 20 | F52: 4 | G52: برواز خشب | I52: WOOD FRAME | M52: =P52*O52 -> 0 | O52: 0.67 | R52: BLACK | S52: 30*40*27
D53: 20 | F53: غطاء | G53: غطاء اصلاي اسود | I53: BLACK COVER AHSAN | M53: 0 | O53: 0.605 | R53: BLUE | S53: 30*40*27
F54: غطاء | G54: غطاء الاحسن ازرق | I54: BLUE COVER ASILAY | M54: =P54*O54 -> 0 | O54: 0.685 | R54: BLUE | S54: 40*60*17
F55: زاوية | G55: زوايا الاحسن اسود | I55: BLACK SQUARE AHSAN | M55: 0 | O55: 0.57 | R55: BLUE | S55: 30*50*22
F56: زاوية | G56: زوايا اصلاي ازرق | I56: BLUE SQUARE ASILAY | M56: 0 | O56: 0.61 | R56: BLAK | S56: 30*50*22
F57: كيلو | G57: كلبس | I57: CLIPS | M57: 0 | O57: 0.42 | R57: BLUE | S57: 30*40*18
F58: كيلو | G58: شمبر | I58: CHAMBER | M58: 0 | O58: 0.45 | R58: BLAK | S58: 30*40*18
F59: بالالف | G59: استيكر حراري | I59: THERMAL STICKER | M59: 0 | O59: 0.45 | R59: BLUE | S59: 30*40*16
F60: بكره | G60: استيكر بيضحك | I60: SMAIL STICKER | M60: 0 | O60: 0.45 | R60: BLAK | S60: 30*40*16
F61: جهاز | G61: جهاز حرارة | I61: HEAT DEVICE | M61: 0 | O61: 0.67 | R61: BLACK | S61: 30*40*27
F62: كيس | G62: اير باج كيس هوائي | I62: AIR BAG | M62: 0 | O62: 0.605 | R62: BLUE | S62: 30*40*27
F63: عدد | G63: بيان بالت | I63: BALT REPORT | M63: 0 | S63: SHIKARA
F64: كيلو | G64: مناديل الاحسن | I64: TISSUE PAPER AHSAN | M64: 0 | O64: 0.85 | S64: KARTOUN OPEN TOP
F65: ص | G65: صندوق 30*40*27 ازرق | H65: صندوق 30*50*22 اسود | I65: BOX 30*40*27 BLUE | M65: 0 | O65: 0.85 | S65: KARTOUN TELSKOBEK
F66: ص | G66: صندوق 30*50*16 ازرق | I66: BOX 30*50*16 BLUE
F67: كيلو | G67: ورق جزاري30*50 | H67: صندوق 30*50*22 اسود
F68: كيلو | G68: ورق جزاري 30*40 | M68: 0
C69: =SUM(B50:C68) -> 437 | G69: TOTAL | M69: =SUM(M51:N68) -> 0 | P69: =SUM(P51:P68) -> 0 | Q69: =SUM(Q51:Q68) -> 21
B70: YUKLEME PLANI DOKUMU
C71: FIYAT | D71: NET KILO | F71: DARA | H71: GAFAF KILO | I71: BRUT KILO | M71: TOTAL | N71: BOKS | P71: PALET ADET | Q71: Box type and size | S71: Item
C72: Price | D72: Net Weight | F72: Tare weight | H72: GAFAF weight | I72: Gross Weight | M72: =P72*N72 -> 1680 | N72: 80 | P72: 21 | Q72: BOX 30*40*27BLUE | S72: ORANG
D73: =I73+H73-F73 -> 17393 | F73: =C69+M69 -> 437 | H73: 250 | I73: 17580 | M73: =P73*N73 -> 0 | Q73: BOX 30*40*27BLUE
M74: 0 | Q74: BOX 30*40*27BLACK
C75: Net Weight | D75: Gross Weight | F75: Net | G75: Gross | I75: Number of boxes | M75: 0 | Q75: BOX 30*50*16 BLUE
C76: =F76*I76 -> 17393 | E76: =G76*I76 -> 17580 | F76: =D73/I76 -> 10.35297619 | G76: =I73/I76 -> 10.46428571 | I76: 1680 | M76: 0 | Q76: BOX 30*50*16 BLUE
C77: =I77*G77 -> 0 | D77: =I77*F77 -> 0 | M77: 0 | Q77: BOX 30*50*22 BLACK | S77: ORANG
C78: =I78*G78 -> 0 | D78: 0 | M78: 0 | Q78: BOX 30*50*22 BLUE
C79: =I79*G79 -> 0 | D79: 0 | M79: 0 | Q79: BOX 30*50*22 BLUE
C80: =I80*G80 -> 0 | D80: =I80*F80 -> 0 | M80: 0 | Q80: BOX 30*50*22 BLUE
C81: =SUM(C76:C80) -> 17393 | D81: =SUM(D76:E80) -> 17580 | F81: =+F76+F77+F78+F79+F80 -> 10.35297619 | G81: =+G80+G79+G78+G77+G76 -> 10.46428571 | I81: =SUM(I76:K80) -> 1680 | M81: =SUM(M71:M80) -> 1680 | P81: =SUM(P72:P80) -> 21 | Q81: TOTAL
K82: =B41-I81 -> -570 | M82: =P69-M81 -> -1680 | P82: =Q69-P81 -> 0

Sheet hakan8
B1: ASILAY For Agriculture Crops
F2: بيان بتحميل الحاوية أو ( البراد)
B3: TIR YUKLEME PLANI
B4: CONSTANTA | E4: GIDECEGI SEHIR | I4: اسم البلد | L4: 15 | M4: 2022-03-15 | P4: TRIH | R4: تاريخ | U4: 1
B5: AHMED OSAMA | E5: YUKLE MEYAPAN KISI | I5: مسئول التحميل | L5: 16 | M5: 2022-03-20 | P5: LIMAN HAREKET | R5: وقت التحرك من الميناء | U5: 2
B6: =H45 &"_" & F45&"_" & D45 -> إسحاق_العطار_العدالة | E6: MUSTAHSIL ISMI | I6: مزرعة البضاعة | L6: 17 | M6: mas56536226 | P6: KONTEYNIR SERI NUMARASI | R6: رقم الكنتينر | U6: 3
E7: MALI ALAN SIMSAR | I7: اسم السمسار | L7: 18 | M7: hakan8 | P7: KONTEYNIR SIRA NO | R7: عدد التحميل | U7: 4
B8: ELFRNSYA | E8: MALIN ISLENDIGI ISLETME | I8: اسم المحطه | L8: 19 | M8: MEHMET KAHECI A | P8: KONTENIR FIRMASI | R8: شركة كونتينر | U8: 5
B9: 535665 | I9: رقم السيل | L9: 20 | M9: محمد | P9: SOFR ADI | R9: اسم السواق | U9: 6
B10: درجة أولى | E10: CLASS | I10: الصنف المحصول | L10: 21 | M10: 01250000 | P10: SOFOR TEL | R10: التليفون | U10: 7
B11: =T45&"_" & R45&"_" & P45 -> كيت اخضر_كيت احمر_كيت | E11: DEGREE | I11: النوع المحصول | L11: 22 | M11: 538/568 | P11: TIR PLAKA | R11: رقم السياره | U11: 8
B12: AHSAN | I12: اسم المصدر | L12: 23 | N12: 6 | P12: PARTI NO | R12: لوط | U12: 9
B13: YOUNS | I13: اسم المستورد | L13: 24 | M13: 4100$ | P13: TERMOKINK NAVLIUN | R13: نولون براد | U13: 10
B14: ROMANIA | E14: LIMAN ADI | I14: اسم الدوله | L14: 25 | P14: GUMAURK | R14: جمارك | U14: 11
B15: ALEX | I15: اسم الميناء | L15: 26 | P15: KONTENIR VE GEMI NAVLUN | R15: نولون المركب الكنتينر | U15: 12
B16: CIF | E16: Payment method | I16: طريقة الدفع | L16: 27 | M16: 5 | P16: GIDECEGI DERECE | R16: درجة الحراره | U16: 13
B17: EASY WAY | E17: =+P28 -> GUMAURK | I17: اسم الجمارك | L17: 28 | M17: KAPTAN | P17: GEMI ADL | R17: اسم المركب | U17: 14
D19: 1 | F19: 0.9 | H19: 0.8 | K19: 0.7 | L19: * | M19: 0.6 | O19: 0.5 | P19: MALIN KALITE DUZEYI | R19: جودة البضاعه
B21: يرتقالي / ORANGE | E21: برتقالي كاتم /DARK ORANGE | I21: اصفر على برتقالي / YELLOW ON ORANGE | N21: اصفر/ YELLOW | P21: RENK | R21: اللون
F23: CIF | H23: KOMISYON | K23: CIS | L23: * | M23: FOB | O23: EXW | P23: Payment method | R23: طريقة الدفع
L24: * | M24: NO | O24: YES | P24: GENERATOR | R24: مولد
G26: 5 | H26: ANOTHER COUNTRY | M26: EGYPT | P26: FREE TIM | R26: الوقت المتبقى
D28: EASY WAY | H28: Ocean Queen | L28: * | M28: AIR SEA LAND | P28: GUMAURK | R28: جمارك
B29: KALIBRE
B30: TOUTAL | L30: MIX | M30: LARG | N30: 64 | O30: 56 | P30: 48 | Q30: 40 | R30: 36 | S30: 32 | T30: KALIBRE
T31: حجم
B32: =SUM(H32:S32) -> 16 | P32: 1 | Q32: 4 | R32: 6 | S32: 5 | T32: ADET
B33: YUKLEME PLANI
F34: 10 | H34: 9 | J34: 8 | K34: 7 | M34: 6 | O34: 5 | P34: 4 | Q34: 3 | R34: 2 | S34: 1 | T34: نوع البضاعه
F35: ORANG | G35: ORANG | H35: ORANG | I35: ORANG | J35: ORANG | K35: ORANG | M35: ORANG | N35: ORANG | O35: ORANG | P35: ORANG | Q35: ORANG | R35: ORANG | S35: ORANG | T35: MALIN CINSI
A36: 80 | I36: 150 | J36: 120 | K36: 180 | M36: 120 | O36: 150 | P36: 120 | Q36: 180 | R36: 180 | S36: 180 | T36: NAMPER
F37: FRESH | G37: FRESH | H37: FRESH | I37: FRESH | J37: FRESH | K37: FRESH | M37: FRESH | N37: FRESH | O37: FRESH | P37: FRESH | Q37: FRESH | R37: FRESH | S37: FRESH | T37: FREESH/COLORING
B39: TOTAL | F39: 21 | H39: 20 | J39: 19 | K39: 18 | M39: 17 | O39: 16 | P39: 15 | Q39: 14 | R39: 13 | S39: 12 | T39: نوع البضاعه
F40: ORANG | G40: ORANG | H40: ORANG | I40: ORANG | J40: ORANG | K40: ORANG | M40: ORANG | N40: ORANG | O40: ORANG | P40: ORANG | Q40: ORANG | R40: ORANG | S40: ORANG | T40: ORANG
B41: =D41+F41+H41+K41+M41+O41+P41+Q41++R41+S41+B36+D36+F36+H36+K36+M36+O36+P36+Q36+R36+S36 -> 1110 | T41: KASA ADEDI
F42: FRESH | G42: FRESH | H42: FRESH | I42: FRESH | J42: FRESH | K42: FRESH | M42: FRESH | N42: FRESH | O42: FRESH | P42: FRESH | Q42: FRESH | R42: FRESH | S42: FRESH | T42: FREESH/COLORING
B44: Farmes | K44: PALET ADET | P44: items
B45: الاجمالى | D45: العدالة | F45: العطار | H45: إسحاق | K45: export | M45: operation process | P45: كيت | R45: كيت احمر | T45: كيت اخضر
B46: weight | C46: PALET ADET | D46: weight | E46: PALET ADET | F46: weight | G46: PALET ADET | H46: weight | I46: PALET ADET | K46: weight | L46: PALET ADET | M46: weight | N46: PALET ADET | P46: weight | Q46: PALET ADET | R46: weight | S46: PALET ADET | T46: weight | U46: PALET ADET
B47: =+C81 -> 17393 | C47: =+Q69 -> 21 | D47: =($B$47/$C$47)*E47 -> 4969.428571 | E47: 6 | F47: =($B$47/$C$47)*G47 -> 4969.428571 | G47: 6 | H47: =($B$47/$C$47)*I47 -> 7454.142857 | I47: 9 | K47: =($B$47/$C$47)*L47 -> 8282.380952 | L47: 10 | M47: =($B$47/$C$47)*N47 -> 9110.619048 | N47: 11 | P47: =($B$47/$C$47)*Q47 -> 8282.380952 | Q47: 10 | R47: =($B$47/$C$47)*S47 -> 4969.428571 | S47: 6 | T47: =($B$47/$C$47)*U47 -> 4141.190476 | U47: 5
C49: Weight | D49: العدد | F49: الوحدة/الوزن | G49: بيان المهمات | I49: MISSIONS | M49: weight BOXES | O49: weight BOX | P49: KASA ADETI | Q49: PALET ADET | R49: COLORS BOX | S49: AMBALAJ | U49: MALIN CINSI
C50: =F50*D50 -> 340 | D50: 20 | F50: 17 | G50: بالتة خشب صادر | I50: EXPORTED WOOD PALLET | M50: اجمالي الوزن | O50: وزن الصندوق | P50: عدد الصندوق | Q50: عدد البالتات | R50: لون الصندوق | S50: مقاس الصندوق
C51: =F51*D51 -> 17 | D51: 1 | F51: 17 | G51: شريحة خشب 80 × 120 | I51: WOOD SLICE 80*120 | M51: =P51*O51 -> 0 | O51: 0.47 | Q51: 21 | R51: BLUE | S51: 30*50*16 | U51: ORANG
C52: 80 | D52: 20 | F52: 4 | G52: برواز خشب | I52: WOOD FRAME | M52: =P52*O52 -> 0 | O52: 0.67 | R52: BLACK | S52: 30*40*27
D53: 20 | F53: غطاء | G53: غطاء اصلاي اسود | I53: BLACK COVER AHSAN | M53: 0 | O53: 0.605 | R53: BLUE | S53: 30*40*27
F54: غطاء | G54: غطاء الاحسن ازرق | I54: BLUE COVER ASILAY | M54: =P54*O54 -> 0 | O54: 0.685 | R54: BLUE | S54: 40*60*17
F55: زاوية | G55: زوايا الاحسن اسود | I55: BLACK SQUARE AHSAN | M55: 0 | O55: 0.57 | R55: BLUE | S55: 30*50*22
F56: زاوية | G56: زوايا اصلاي ازرق | I56: BLUE SQUARE ASILAY | M56: 0 | O56: 0.61 | R56: BLAK | S56: 30*50*22
F57: كيلو | G57: كلبس | I57: CLIPS | M57: 0 | O57: 0.42 | R57: BLUE | S57: 30*40*18
F58: كيلو | G58: شمبر | I58: CHAMBER | M58: 0 | O58: 0.45 | R58: BLAK | S58: 30*40*18
F59: بالالف | G59: استيكر حراري | I59: THERMAL STICKER | M59: 0 | O59: 0.45 | R59: BLUE | S59: 30*40*16
F60: بكره | G60: استيكر بيضحك | I60: SMAIL STICKER | M60: 0 | O60: 0.45 | R60: BLAK | S60: 30*40*16
F61: جهاز | G61: جهاز حرارة | I61: HEAT DEVICE | M61: 0 | O61: 0.67 | R61: BLACK | S61: 30*40*27
F62: كيس | G62: اير باج كيس هوائي | I62: AIR BAG | M62: 0 | O62: 0.605 | R62: BLUE | S62: 30*40*27
F63: عدد | G63: بيان بالت | I63: BALT REPORT | M63: 0 | S63: SHIKARA
F64: كيلو | G64: مناديل الاحسن | I64: TISSUE PAPER AHSAN | M64: 0 | O64: 0.85 | S64: KARTOUN OPEN TOP
F65: ص | G65: صندوق 30*40*27 ازرق | H65: صندوق 30*50*22 اسود | I65: BOX 30*40*27 BLUE | M65: 0 | O65: 0.85 | S65: KARTOUN TELSKOBEK
F66: ص | G66: صندوق 30*50*16 ازرق | I66: BOX 30*50*16 BLUE
F67: كيلو | G67: ورق جزاري30*50 | H67: صندوق 30*50*22 اسود
F68: كيلو | G68: ورق جزاري 30*40 | M68: 0
C69: =SUM(B50:C68) -> 437 | G69: TOTAL | M69: =SUM(M51:N68) -> 0 | P69: =SUM(P51:P68) -> 0 | Q69: =SUM(Q51:Q68) -> 21
B70: YUKLEME PLANI DOKUMU
C71: FIYAT | D71: NET KILO | F71: DARA | H71: GAFAF KILO | I71: BRUT KILO | M71: TOTAL | N71: BOKS | P71: PALET ADET | Q71: Box type and size | S71: Item
C72: Price | D72: Net Weight | F72: Tare weight | H72: GAFAF weight | I72: Gross Weight | M72: =P72*N72 -> 1680 | N72: 80 | P72: 21 | Q72: BOX 30*40*27BLUE | S72: ORANG
D73: =I73+H73-F73 -> 17393 | F73: =C69+M69 -> 437 | H73: 250 | I73: 17580 | M73: =P73*N73 -> 0 | Q73: BOX 30*40*27BLUE
M74: 0 | Q74: BOX 30*40*27BLACK
C75: Net Weight | D75: Gross Weight | F75: Net | G75: Gross | I75: Number of boxes | M75: 0 | Q75: BOX 30*50*16 BLUE
C76: =F76*I76 -> 17393 | E76: =G76*I76 -> 17580 | F76: =D73/I76 -> 10.35297619 | G76: =I73/I76 -> 10.46428571 | I76: 1680 | M76: 0 | Q76: BOX 30*50*16 BLUE
C77: =I77*G77 -> 0 | D77: =I77*F77 -> 0 | M77: 0 | Q77: BOX 30*50*22 BLACK | S77: ORANG
C78: =I78*G78 -> 0 | D78: 0 | M78: 0 | Q78: BOX 30*50*22 BLUE
C79: =I79*G79 -> 0 | D79: 0 | M79: 0 | Q79: BOX 30*50*22 BLUE
C80: =I80*G80 -> 0 | D80: =I80*F80 -> 0 | M80: 0 | Q80: BOX 30*50*22 BLUE
C81: =SUM(C76:C80) -> 17393 | D81: =SUM(D76:E80) -> 17580 | F81: =+F76+F77+F78+F79+F80 -> 10.35297619 | G81: =+G80+G79+G78+G77+G76 -> 10.46428571 | I81: =SUM(I76:K80) -> 1680 | M81: =SUM(M71:M80) -> 1680 | P81: =SUM(P72:P80) -> 21 | Q81: TOTAL
K82: =B41-I81 -> -570 | M82: =P69-M81 -> -1680 | P82: =Q69-P81 -> 0

Sheet hakan9
B1: ASILAY For Agriculture Crops
F2: بيان بتحميل الحاوية أو ( البراد)
B3: TIR YUKLEME PLANI
B4: CONSTANTA | E4: GIDECEGI SEHIR | I4: اسم البلد | L4: 15 | M4: 2022-03-15 | P4: TRIH | R4: تاريخ | U4: 1
B5: AHMED OSAMA | E5: YUKLE MEYAPAN KISI | I5: مسئول التحميل | L5: 16 | M5: 2022-03-20 | P5: LIMAN HAREKET | R5: وقت التحرك من الميناء | U5: 2
B6: =H45 &"_" & F45&"_" & D45 -> إسحاق_العطار_العدالة | E6: MUSTAHSIL ISMI | I6: مزرعة البضاعة | L6: 17 | M6: mas56536226 | P6: KONTEYNIR SERI NUMARASI | R6: رقم الكنتينر | U6: 3
E7: MALI ALAN SIMSAR | I7: اسم السمسار | L7: 18 | M7: hakan9 | P7: KONTEYNIR SIRA NO | R7: عدد التحميل | U7: 4
B8: ELFRNSYA | E8: MALIN ISLENDIGI ISLETME | I8: اسم المحطه | L8: 19 | M8: MEHMET KAHECI A | P8: KONTENIR FIRMASI | R8: شركة كونتينر | U8: 5
B9: 535665 | I9: رقم السيل | L9: 20 | M9: محمد | P9: SOFR ADI | R9: اسم السواق | U9: 6
B10: درجة أولى | E10: CLASS | I10: الصنف المحصول | L10: 21 | M10: 01250000 | P10: SOFOR TEL | R10: التليفون | U10: 7
B11: =T45&"_" & R45&"_" & P45 -> كيت اخضر_كيت احمر_كيت | E11: DEGREE | I11: النوع المحصول | L11: 22 | M11: 538/568 | P11: TIR PLAKA | R11: رقم السياره | U11: 8
B12: AHSAN | I12: اسم المصدر | L12: 23 | N12: 6 | P12: PARTI NO | R12: لوط | U12: 9
B13: YOUNS | I13: اسم المستورد | L13: 24 | M13: 4100$ | P13: TERMOKINK NAVLIUN | R13: نولون براد | U13: 10
B14: ROMANIA | E14: LIMAN ADI | I14: اسم الدوله | L14: 25 | P14: GUMAURK | R14: جمارك | U14: 11
B15: ALEX | I15: اسم الميناء | L15: 26 | P15: KONTENIR VE GEMI NAVLUN | R15: نولون المركب الكنتينر | U15: 12
B16: CIF | E16: Payment method | I16: طريقة الدفع | L16: 27 | M16: 5 | P16: GIDECEGI DERECE | R16: درجة الحراره | U16: 13
B17: EASY WAY | E17: =+P28 -> GUMAURK | I17: اسم الجمارك | L17: 28 | M17: KAPTAN | P17: GEMI ADL | R17: اسم المركب | U17: 14
D19: 1 | F19: 0.9 | H19: 0.8 | K19: 0.7 | L19: * | M19: 0.6 | O19: 0.5 | P19: MALIN KALITE DUZEYI | R19: جودة البضاعه
B21: يرتقالي / ORANGE | E21: برتقالي كاتم /DARK ORANGE | I21: اصفر على برتقالي / YELLOW ON ORANGE | N21: اصفر/ YELLOW | P21: RENK | R21: اللون
F23: CIF | H23: KOMISYON | K23: CIS | L23: * | M23: FOB | O23: EXW | P23: Payment method | R23: طريقة الدفع
L24: * | M24: NO | O24: YES | P24: GENERATOR | R24: مولد
G26: 5 | H26: ANOTHER COUNTRY | M26: EGYPT | P26: FREE TIM | R26: الوقت المتبقى
D28: EASY WAY | H28: Ocean Queen | L28: * | M28: AIR SEA LAND | P28: GUMAURK | R28: جمارك
B29: KALIBRE
B30: TOUTAL | L30: MIX | M30: LARG | N30: 64 | O30: 56 | P30: 48 | Q30: 40 | R30: 36 | S30: 32 | T30: KALIBRE
T31: حجم
B32: =SUM(H32:S32) -> 16 | P32: 1 | Q32: 4 | R32: 6 | S32: 5 | T32: ADET
B33: YUKLEME PLANI
F34: 10 | H34: 9 | J34: 8 | K34: 7 | M34: 6 | O34: 5 | P34: 4 | Q34: 3 | R34: 2 | S34: 1 | T34: نوع البضاعه
F35: ORANG | G35: ORANG | H35: ORANG | I35: ORANG | J35: ORANG | K35: ORANG | M35: ORANG | N35: ORANG | O35: ORANG | P35: ORANG | Q35: ORANG | R35: ORANG | S35: ORANG | T35: MALIN CINSI
A36: 80 | I36: 150 | J36: 120 | K36: 180 | M36: 120 | O36: 150 | P36: 120 | Q36: 180 | R36: 180 | S36: 180 | T36: NAMPER
F37: FRESH | G37: FRESH | H37: FRESH | I37: FRESH | J37: FRESH | K37: FRESH | M37: FRESH | N37: FRESH | O37: FRESH | P37: FRESH | Q37: FRESH | R37: FRESH | S37: FRESH | T37: FREESH/COLORING
B39: TOTAL | F39: 21 | H39: 20 | J39: 19 | K39: 18 | M39: 17 | O39: 16 | P39: 15 | Q39: 14 | R39: 13 | S39: 12 | T39: نوع البضاعه
F40: ORANG | G40: ORANG | H40: ORANG | I40: ORANG | J40: ORANG | K40: ORANG | M40: ORANG | N40: ORANG | O40: ORANG | P40: ORANG | Q40: ORANG | R40: ORANG | S40: ORANG | T40: ORANG
B41: =D41+F41+H41+K41+M41+O41+P41+Q41++R41+S41+B36+D36+F36+H36+K36+M36+O36+P36+Q36+R36+S36 -> 1110 | T41: KASA ADEDI
F42: FRESH | G42: FRESH | H42: FRESH | I42: FRESH | J42: FRESH | K42: FRESH | M42: FRESH | N42: FRESH | O42: FRESH | P42: FRESH | Q42: FRESH | R42: FRESH | S42: FRESH | T42: FREESH/COLORING
B44: Farmes | K44: PALET ADET | P44: items
B45: الاجمالى | D45: العدالة | F45: العطار | H45: إسحاق | K45: export | M45: operation process | P45: كيت | R45: كيت احمر | T45: كيت اخضر
B46: weight | C46: PALET ADET | D46: weight | E46: PALET ADET | F46: weight | G46: PALET ADET | H46: weight | I46: PALET ADET | K46: weight | L46: PALET ADET | M46: weight | N46: PALET ADET | P46: weight | Q46: PALET ADET | R46: weight | S46: PALET ADET | T46: weight | U46: PALET ADET
B47: =+C81 -> 17393 | C47: =+Q69 -> 21 | D47: =($B$47/$C$47)*E47 -> 4969.428571 | E47: 6 | F47: =($B$47/$C$47)*G47 -> 4969.428571 | G47: 6 | H47: =($B$47/$C$47)*I47 -> 7454.142857 | I47: 9 | K47: =($B$47/$C$47)*L47 -> 8282.380952 | L47: 10 | M47: =($B$47/$C$47)*N47 -> 9110.619048 | N47: 11 | P47: =($B$47/$C$47)*Q47 -> 8282.380952 | Q47: 10 | R47: =($B$47/$C$47)*S47 -> 4969.428571 | S47: 6 | T47: =($B$47/$C$47)*U47 -> 4141.190476 | U47: 5
C49: Weight | D49: العدد | F49: الوحدة/الوزن | G49: بيان المهمات | I49: MISSIONS | M49: weight BOXES | O49: weight BOX | P49: KASA ADETI | Q49: PALET ADET | R49: COLORS BOX | S49: AMBALAJ | U49: MALIN CINSI
C50: =F50*D50 -> 340 | D50: 20 | F50: 17 | G50: بالتة خشب صادر | I50: EXPORTED WOOD PALLET | M50: اجمالي الوزن | O50: وزن الصندوق | P50: عدد الصندوق | Q50: عدد البالتات | R50: لون الصندوق | S50: مقاس الصندوق
C51: =F51*D51 -> 17 | D51: 1 | F51: 17 | G51: شريحة خشب 80 × 120 | I51: WOOD SLICE 80*120 | M51: =P51*O51 -> 0 | O51: 0.47 | Q51: 21 | R51: BLUE | S51: 30*50*16 | U51: ORANG
C52: 80 | D52: 20 | F52: 4 | G52: برواز خشب | I52: WOOD FRAME | M52: =P52*O52 -> 0 | O52: 0.67 | R52: BLACK | S52: 30*40*27
D53: 20 | F53: غطاء | G53: غطاء اصلاي اسود | I53: BLACK COVER AHSAN | M53: 0 | O53: 0.605 | R53: BLUE | S53: 30*40*27
F54: غطاء | G54: غطاء الاحسن ازرق | I54: BLUE COVER ASILAY | M54: =P54*O54 -> 0 | O54: 0.685 | R54: BLUE | S54: 40*60*17
F55: زاوية | G55: زوايا الاحسن اسود | I55: BLACK SQUARE AHSAN | M55: 0 | O55: 0.57 | R55: BLUE | S55: 30*50*22
F56: زاوية | G56: زوايا اصلاي ازرق | I56: BLUE SQUARE ASILAY | M56: 0 | O56: 0.61 | R56: BLAK | S56: 30*50*22
F57: كيلو | G57: كلبس | I57: CLIPS | M57: 0 | O57: 0.42 | R57: BLUE | S57: 30*40*18
F58: كيلو | G58: شمبر | I58: CHAMBER | M58: 0 | O58: 0.45 | R58: BLAK | S58: 30*40*18
F59: بالالف | G59: استيكر حراري | I59: THERMAL STICKER | M59: 0 | O59: 0.45 | R59: BLUE | S59: 30*40*16
F60: بكره | G60: استيكر بيضحك | I60: SMAIL STICKER | M60: 0 | O60: 0.45 | R60: BLAK | S60: 30*40*16
F61: جهاز | G61: جهاز حرارة | I61: HEAT DEVICE | M61: 0 | O61: 0.67 | R61: BLACK | S61: 30*40*27
F62: كيس | G62: اير باج كيس هوائي | I62: AIR BAG | M62: 0 | O62: 0.605 | R62: BLUE | S62: 30*40*27
F63: عدد | G63: بيان بالت | I63: BALT REPORT | M63: 0 | S63: SHIKARA
F64: كيلو | G64: مناديل الاحسن | I64: TISSUE PAPER AHSAN | M64: 0 | O64: 0.85 | S64: KARTOUN OPEN TOP
F65: ص | G65: صندوق 30*40*27 ازرق | H65: صندوق 30*50*22 اسود | I65: BOX 30*40*27 BLUE | M65: 0 | O65: 0.85 | S65: KARTOUN TELSKOBEK
F66: ص | G66: صندوق 30*50*16 ازرق | I66: BOX 30*50*16 BLUE
F67: كيلو | G67: ورق جزاري30*50 | H67: صندوق 30*50*22 اسود
F68: كيلو | G68: ورق جزاري 30*40 | M68: 0
C69: =SUM(B50:C68) -> 437 | G69: TOTAL | M69: =SUM(M51:N68) -> 0 | P69: =SUM(P51:P68) -> 0 | Q69: =SUM(Q51:Q68) -> 21
B70: YUKLEME PLANI DOKUMU
C71: FIYAT | D71: NET KILO | F71: DARA | H71: GAFAF KILO | I71: BRUT KILO | M71: TOTAL | N71: BOKS | P71: PALET ADET | Q71: Box type and size | S71: Item
C72: Price | D72: Net Weight | F72: Tare weight | H72: GAFAF weight | I72: Gross Weight | M72: =P72*N72 -> 1680 | N72: 80 | P72: 21 | Q72: BOX 30*40*27BLUE | S72: ORANG
D73: =I73+H73-F73 -> 17393 | F73: =C69+M69 -> 437 | H73: 250 | I73: 17580 | M73: =P73*N73 -> 0 | Q73: BOX 30*40*27BLUE
M74: 0 | Q74: BOX 30*40*27BLACK
C75: Net Weight | D75: Gross Weight | F75: Net | G75: Gross | I75: Number of boxes | M75: 0 | Q75: BOX 30*50*16 BLUE
C76: =F76*I76 -> 17393 | E76: =G76*I76 -> 17580 | F76: =D73/I76 -> 10.35297619 | G76: =I73/I76 -> 10.46428571 | I76: 1680 | M76: 0 | Q76: BOX 30*50*16 BLUE
C77: =I77*G77 -> 0 | D77: =I77*F77 -> 0 | M77: 0 | Q77: BOX 30*50*22 BLACK | S77: ORANG
C78: =I78*G78 -> 0 | D78: 0 | M78: 0 | Q78: BOX 30*50*22 BLUE
C79: =I79*G79 -> 0 | D79: 0 | M79: 0 | Q79: BOX 30*50*22 BLUE
C80: =I80*G80 -> 0 | D80: =I80*F80 -> 0 | M80: 0 | Q80: BOX 30*50*22 BLUE
C81: =SUM(C76:C80) -> 17393 | D81: =SUM(D76:E80) -> 17580 | F81: =+F76+F77+F78+F79+F80 -> 10.35297619 | G81: =+G80+G79+G78+G77+G76 -> 10.46428571 | I81: =SUM(I76:K80) -> 1680 | M81: =SUM(M71:M80) -> 1680 | P81: =SUM(P72:P80) -> 21 | Q81: TOTAL
K82: =B41-I81 -> -570 | M82: =P69-M81 -> -1680 | P82: =Q69-P81 -> 0
